Workbook

Sheet Admin
AA1: Year | AB1: Month
A2: Model | B2: WSL2 | AA2: 1995 | AB2: 1
AA3: 1996 | AB3: 2
A4: Actual | B4: Year | C4: Month | AA4: 1997 | AB4: 3
A5: From Date | B5: 2006 | C5: 1 | AA5: 1998 | AB5: 4
A6: To Date | B6: 2013 | C6: 12 | AA6: 1999 | AB6: 5
AA7: 2000 | AB7: 6
A8: Forecast Term | B8: 1 | C8: Years | AA8: 2001 | AB8: 7
AA9: 2002 | AB9: 8
A10: Forecast | B10: Year | C10: Month | AA10: 2003 | AB10: 9
A11: From Date | B11: 2014 | C11: 1 | E11: Months | AA11: 2004 | AB11: 10
A12: To Date | B12: 2015 | C12: 12 | E12: =MyMonthsCount(B11,C11,B12,C12) -> 24 | AA12: 2005 | AB12: 11
AA13: 2006 | AB13: 12
AA14: 2007
AA15: 2008
AA16: 2009
AA17: 2010
AA18: 2011
AA19: 2012
AA20: 2013
AA21: 2014
AA22: 2015
AA23: 2016
AA24: 2017
AA25: 2018
AA26: 2019
AA27: 2020
AA28: 2021
AA29: 2022
AA30: 2023
AA31: 2024
AA32: 2025
AA33: 2026
AA34: 2027
AA35: 2028
AA36: 2029
AA37: 2030

Sheet Monthly Data
A1: Date | B1: WSL2 | C1: MonthlyHDD | D1: MonthlyCDD | E1: PeakDays | F1: Time
A2: 2005-11-01 | B2: 13482384.7 | C2: 613.7 | D2: 0 | E2: 22 | F2: 1
A3: 2005-12-01 | B3: 15855748.65 | C3: 865.5 | D3: 0 | E3: 20 | F3: 2
A4: 2006-01-01 | B4: 16432360.53 | C4: 781.7 | D4: 0 | E4: 21 | F4: 3
A5: 2006-02-01 | B5: 15254915.93 | C5: 862 | D5: 0 | E5: 20 | F5: 4
A6: 2006-03-01 | B6: 14730427.05 | C6: 684.8 | D6: 0 | E6: 23 | F6: 5
A7: 2006-04-01 | B7: 11361311.2 | C7: 415.4 | D7: 0 | E7: 18 | F7: 6
A8: 2006-05-01 | B8: 10639715.81 | C8: 243.4 | D8: 3.9 | E8: 22 | F8: 7
A9: 2006-06-01 | B9: 9655562.27 | C9: 123.8 | D9: 4.3 | E9: 22 | F9: 8
A10: 2006-07-01 | B10: 10846451.32 | C10: 52.8 | D10: 27.7 | E10: 20 | F10: 9
A11: 2006-08-01 | B11: 10694433.44 | C11: 91 | D11: 7.5 | E11: 22 | F11: 10
A12: 2006-09-01 | B12: 10191889.76 | C12: 214.4 | D12: 1.4 | E12: 20 | F12: 11
A13: 2006-10-01 | B13: 12347060.37 | C13: 433.1 | D13: 0 | E13: 21 | F13: 12
A14: 2006-11-01 | B14: 12995676.43 | C14: 518.5 | D14: 0 | E14: 22 | F14: 13
A15: 2006-12-01 | B15: 15518992.22 | C15: 711.4 | D15: 0 | E15: 19 | F15: 14
A16: 2007-01-01 | B16: 17027640.54 | C16: 904.3 | D16: 0 | E16: 22 | F16: 15
A17: 2007-02-01 | B17: 16669380.51 | C17: 948.2 | D17: 0 | E17: 20 | F17: 16
A18: 2007-03-01 | B18: 14934754.38 | C18: 725.1 | D18: 0 | E18: 22 | F18: 17
A19: 2007-04-01 | B19: 12687457.81 | C19: 505.4 | D19: 0 | E19: 19 | F19: 18
A20: 2007-05-01 | B20: 10985339.71 | C20: 267.8 | D20: 3.8 | E20: 22 | F20: 19
A21: 2007-06-01 | B21: 9760012.78 | C21: 116.4 | D21: 9.6 | E21: 21 | F21: 20
A22: 2007-07-01 | B22: 10363539.75 | C22: 100.5 | D22: 15.8 | E22: 21 | F22: 21
A23: 2007-08-01 | B23: 10623681.96 | C23: 70.8 | D23: 10.7 | E23: 22 | F23: 22
A24: 2007-09-01 | B24: 9937765.46 | C24: 159.7 | D24: 5.6 | E24: 19 | F24: 23
A25: 2007-10-01 | B25: 11018147.89 | C25: 303.9 | D25: 0 | E25: 22 | F25: 24
A26: 2007-11-01 | B26: 13301022.96 | C26: 602.7 | D26: 0 | E26: 22 | F26: 25
A27: 2007-12-01 | B27: 16610853.84 | C27: 870.2 | D27: 0 | E27: 19 | F27: 26
A28: 2008-01-01 | B28: 16747623.76 | C28: 873.3 | D28: 0 | E28: 22 | F28: 27
A29: 2008-02-01 | B29: 16220989.9 | C29: 893.4 | D29: 0 | E29: 20 | F29: 28
A30: 2008-03-01 | B30: 16185519.13 | C30: 838 | D30: 0 | E30: 19 | F30: 29
A31: 2008-04-01 | B31: 12384878.22 | C31: 461 | D31: 0 | E31: 22 | F31: 30
A32: 2008-05-01 | B32: 11570573.57 | C32: 376.9 | D32: 0 | E32: 21 | F32: 31
A33: 2008-06-01 | B33: 10031531.33 | C33: 151 | D33: 2.1 | E33: 21 | F33: 32
A34: 2008-07-01 | B34: 10603201.34 | C34: 106.3 | D34: 1 | E34: 22 | F34: 33
A35: 2008-08-01 | B35: 10275407.85 | C35: 80.1 | D35: 2.8 | E35: 20 | F35: 34
A36: 2008-09-01 | B36: 9957791.78 | C36: 192.3 | D36: 5.5 | E36: 21 | F36: 35
A37: 2008-10-01 | B37: 11903930.97 | C37: 384.1 | D37: 0 | E37: 22 | F37: 36
A38: 2008-11-01 | B38: 13578501.35 | C38: 564 | D38: 0 | E38: 20 | F38: 37
A39: 2008-12-01 | B39: 18362207.48 | C39: 946.7 | D39: 0 | E39: 21 | F39: 38
A40: 2009-01-01 | B40: 18881349 | C40: 1063.5 | D40: 0 | E40: 21 | F40: 39
A41: 2009-02-01 | B41: 15951302.32 | C41: 831.7 | D41: 0 | E41: 19 | F41: 40
A42: 2009-03-01 | B42: 15986795.57 | C42: 744.1 | D42: 0 | E42: 22 | F42: 41
A43: 2009-04-01 | B43: 12817613.51 | C43: 480.2 | D43: 0 | E43: 20 | F43: 42
A44: 2009-05-01 | B44: 11557935.37 | C44: 358.7 | D44: 0 | E44: 20 | F44: 43
A45: 2009-06-01 | B45: 10386431.49 | C45: 188.5 | D45: 6.4 | E45: 22 | F45: 44
A46: 2009-07-01 | B46: 10790837.5 | C46: 154 | D46: 0 | E46: 22 | F46: 45
A47: 2009-08-01 | B47: 11118670.27 | C47: 122.6 | D47: 11 | E47: 20 | F47: 46
A48: 2009-09-01 | B48: 10133781.59 | C48: 160.9 | D48: 0 | E48: 21 | F48: 47
A49: 2009-10-01 | B49: 13000847.74 | C49: 450 | D49: 0 | E49: 21 | F49: 48
A50: 2009-11-01 | B50: 12805137.38 | C50: 466.5 | D50: 0 | E50: 21 | F50: 49
A51: 2009-12-01 | B51: 17322151.56 | C51: 865 | D51: 0 | E51: 21 | F51: 50
A52: 2010-01-01 | B52: 17283128.7 | C52: 906 | D52: 0 | E52: 20 | F52: 51
A53: 2010-02-01 | B53: 14874695.65 | C53: 779.8 | D53: 0 | E53: 19 | F53: 52
A54: 2010-03-01 | B54: 13997010.93 | C54: 544.8 | D54: 0 | E54: 23 | F54: 53
A55: 2010-04-01 | B55: 10847949.96 | C55: 388.1 | D55: 0 | E55: 20 | F55: 54
A56: 2010-05-01 | B56: 10080566.12 | C56: 221.9 | D56: 10.8 | E56: 20 | F56: 55
A57: 2010-06-01 | B57: 9283863.41 | C57: 121.1 | D57: 2.8 | E57: 22 | F57: 56
A58: 2010-07-01 | B58: 10277037.66 | C58: 36.6 | D58: 11.6 | E58: 21 | F58: 57
A59: 2010-08-01 | B59: 10298675.94 | C59: 52.2 | D59: 45.9 | E59: 21 | F59: 58
A60: 2010-09-01 | B60: 9789881.8 | C60: 224.1 | D60: 0.4 | E60: 21 | F60: 59
A61: 2010-10-01 | B61: 10854951.36 | C61: 373.7 | D61: 0 | E61: 20 | F61: 60
A62: 2010-11-01 | B62: 12307817.6 | C62: 539.9 | D62: 0 | E62: 22 | F62: 61
A63: 2010-12-01 | B63: 16509634.08 | C63: 833.5 | D63: 0 | E63: 21 | F63: 62
A64: 2011-01-01 | B64: 18210954.41 | C64: 1033.6 | D64: 0 | E64: 20 | F64: 63
A65: 2011-02-01 | B65: 15275983.57 | C65: 832 | D65: 0 | E65: 19 | F65: 64
A66: 2011-03-01 | B66: 14923502.97 | C66: 790.1 | D66: 0 | E66: 23 | F66: 65
A67: 2011-04-01 | B67: 12118407.5 | C67: 521.4 | D67: 0 | E67: 19 | F67: 66
A68: 2011-05-01 | B68: 10132000.65 | C68: 262.5 | D68: 1.2 | E68: 21 | F68: 67
A69: 2011-06-01 | B69: 9032152.86 | C69: 124.3 | D69: 1.4 | E69: 22 | F69: 68
A70: 2011-07-01 | B70: 10244088.84 | C70: 62.5 | D70: 14.1 | E70: 20 | F70: 69
A71: 2011-08-01 | B71: 10453709.46 | C71: 60 | D71: 11.9 | E71: 22 | F71: 70
A72: 2011-09-01 | B72: 9912883.38 | C72: 172.6 | D72: 3.4 | E72: 21 | F72: 71
A73: 2011-10-01 | B73: 10981342.77 | C73: 320.4 | D73: 1.5 | E73: 20 | F73: 72
A74: 2011-11-01 | B74: 12396977.68 | C74: 519.9 | D74: 0 | E74: 22 | F74: 73
A75: 2011-12-01 | B75: 15364156.58 | C75: 787 | D75: 0 | E75: 20 | F75: 74
A76: 2012-01-01 | B76: 16257178 | C76: 870.6 | D76: 0 | E76: 21 | F76: 75
A77: 2012-02-01 | B77: 14151568 | C77: 733.6 | D77: 0 | E77: 20 | F77: 76
A78: 2012-03-01 | B78: 13453783 | C78: 541.7 | D78: 0 | E78: 22 | F78: 77
A79: 2012-04-01 | B79: 11682191 | C79: 476.7 | D79: 0 | E79: 19 | F79: 78
A80: 2012-05-01 | B80: 10307176 | C80: 230.7 | D80: 6.5 | E80: 22 | F80: 79
A81: 2012-06-01 | B81: 9779424 | C81: 93.5 | D81: 15.1 | E81: 21 | F81: 80
A82: 2012-07-01 | B82: 10817789 | C82: 27.3 | D82: 22.5 | E82: 21 | F82: 81
A83: 2012-08-01 | B83: 10717021 | C83: 62.8 | D83: 17.8 | E83: 22 | F83: 82
A84: 2012-09-01 | B84: 10163216 | C84: 219.8 | D84: 5.4 | E84: 19 | F84: 83
A85: 2012-10-01 | B85: 11586791 | C85: 379.9 | D85: 0 | E85: 22 | F85: 84
A86: 2012-11-01 | B86: 13032681 | C86: 567.9 | D86: 0 | E86: 22 | F86: 85
A87: 2012-12-01 | B87: 15521871 | C87: 777.7 | D87: 0 | E87: 19 | F87: 86
A88: 2013-01-01 | B88: 16693786 | C88: 782.4 | D88: 0 | E88: 22 | F88: 87
A89: 2013-02-01 | B89: 15174191 | C89: 692.5 | D89: 0 | E89: 19 | F89: 88
A90: 2013-03-01 | B90: 14601438 | C90: 716.9 | D90: 0 | E90: 20 | F90: 89
A91: 2013-04-01 | B91: 13150077 | C91: 513.5 | D91: 0 | E91: 21 | F91: 90
A92: 2013-05-01 | B92: 10553126 | C92: 306.5 | D92: 0 | E92: 22 | F92: 91
A93: 2013-06-01 | B93: 9632056 | C93: 134.6 | D93: 4 | E93: 20 | F93: 92
A94: 2013-07-01 | B94: 10454381 | C94: 72.6 | D94: 13.5 | E94: 22 | F94: 93
A95: 2013-08-01 | B95: 10345419 | C95: 82.1 | D95: 17.8 | E95: 21 | F95: 94
A96: 2013-09-01 | B96: 10224461 | C96: 170.5 | D96: 0 | E96: 20 | F96: 95
A97: 2013-10-01 | B97: 12045684 | C97: 325.9 | D97: 0 | E97: 22 | F97: 96
A98: 2013-11-01 | B98: 14228773 | C98: 587.8 | D98: 0 | E98: 21 | F98: 97
A99: 2013-12-01 | B99: 18557256 | C99: 854.5 | D99: 0 | E99: 20 | F99: 98

Sheet OLS Model
A1: Model 1: OLS, using observations 2005:11-2013:12 (T = 98)
A2: Dependent variable: WSL2
B4: coefficient | C4: std. error | D4: t-ratio | E4: p-value
A5: const | B5: 5809523.564 | C5: 1304324.332 | D5: 4.454048293 | E5: 2.343577533e-05
A6: MonthlyHDD | B6: 9432.89862 | C6: 276.851516 | D6: 34.07204973 | E6: 2.500680253e-54
A7: MonthlyCDD | B7: 67375.6972 | C7: 11571.85289 | D7: 5.822377611 | E7: 8.220170823e-08
A8: PeakDays | B8: 115509.4711 | C8: 60138.96742 | D8: 1.920709251 | E8: 0.05783179786
A9: Time | B9: 510.6920021 | C9: 2371.339827 | D9: 0.2153601083 | E9: 0.8299581638
A11: Mean dependent var | B11: 12766165.8 | C11: S.D. dependent var | D11: 2660210.212
A12: Sum squared resid | B12: 4.05083437e+13 | C12: S.E. of regression | D12: 659979.9908
A13: R-squared | B13: 0.9409879313 | C13: Adjusted R-squared | D13: 0.9384497778
A14: F(4, 93) | B14: 370.7372047 | C14: P-value(F) | D14: 3.159364312e-56
A15: Log-likelihood | B15: -1449.686495 | C15: Akaike criterion | D15: 2909.37299
A16: Schwarz criterion | B16: 2922.297827 | C16: Hannan-Quinn | D16: 2914.60082
A17: rho | B17: 0.308628269 | C17: Durbin-Watson | D17: 1.320894117
A18: Theil's U | B18: 0.39311

Sheet Predicted Monthly Data
A1: Date | B1: WSL2 | C1: MonthlyHDD | D1: MonthlyCDD | E1: PeakDays | F1: Time | H1: Const | I1: MonthlyHDD | J1: MonthlyCDD | K1: PeakDays | L1: Time | M1: Predicted Value
A2: 2006-01-01 | B2: 16432360.53 | C2: 781.7 | D2: 0 | E2: 21 | F2: 3 | H2: =const -> 5809523.564 | I2: =MonthlyHDD*C2 -> 7373696.852 | J2: =MonthlyCDD*D2 -> 0 | K2: =PeakDays*E2 -> 2425698.893 | L2: =Time*F2 -> 1532.076006 | M2: =SUM(H2:L2) -> 15610451.38
A3: 2006-02-01 | B3: 15254915.93 | C3: 862 | D3: 0 | E3: 20 | F3: 4 | H3: 5809523.564 | I3: 8131158.611 | J3: 0 | K3: 2310189.422 | L3: 2042.768008 | M3: 16252914.36
A4: 2006-03-01 | B4: 14730427.05 | C4: 684.8 | D4: 0 | E4: 23 | F4: 5 | H4: 5809523.564 | I4: 6459648.975 | J4: 0 | K4: 2656717.835 | L4: 2553.46001 | M4: 14928443.83
A5: 2006-04-01 | B5: 11361311.2 | C5: 415.4 | D5: 0 | E5: 18 | F5: 6 | H5: 5809523.564 | I5: 3918426.087 | J5: 0 | K5: 2079170.48 | L5: 3064.152012 | M5: 11810184.28
A6: 2006-05-01 | B6: 10639715.81 | C6: 243.4 | D6: 3.9 | E6: 22 | F6: 7 | H6: 5809523.564 | I6: 2295967.524 | J6: 262765.2191 | K6: 2541208.364 | L6: 3574.844014 | M6: 10913039.52
A7: 2006-06-01 | B7: 9655562.27 | C7: 123.8 | D7: 4.3 | E7: 22 | F7: 8 | H7: 5809523.564 | I7: 1167792.849 | J7: 289715.498 | K7: 2541208.364 | L7: 4085.536016 | M7: 9812325.811
A8: 2006-07-01 | B8: 10846451.32 | C8: 52.8 | D8: 27.7 | E8: 20 | F8: 9 | H8: 5809523.564 | I8: 498057.0472 | J8: 1866306.813 | K8: 2310189.422 | L8: 4596.228019 | M8: 10488673.07
A9: 2006-08-01 | B9: 10694433.44 | C9: 91 | D9: 7.5 | E9: 22 | F9: 10 | H9: 5809523.564 | I9: 858393.7745 | J9: 505317.729 | K9: 2541208.364 | L9: 5106.920021 | M9: 9719550.351
A10: 2006-09-01 | B10: 10191889.76 | C10: 214.4 | D10: 1.4 | E10: 20 | F10: 11 | H10: 5809523.564 | I10: 2022413.464 | J10: 94325.97609 | K10: 2310189.422 | L10: 5617.612023 | M10: 10242070.04
A11: 2006-10-01 | B11: 12347060.37 | C11: 433.1 | D11: 0 | E11: 21 | F11: 12 | H11: 5809523.564 | I11: 4085388.392 | J11: 0 | K11: 2425698.893 | L11: 6128.304025 | M11: 12326739.15
A12: 2006-11-01 | B12: 12995676.43 | C12: 518.5 | D12: 0 | E12: 22 | F12: 13 | H12: 5809523.564 | I12: 4890957.935 | J12: 0 | K12: 2541208.364 | L12: 6638.996027 | M12: 13248328.86
A13: 2006-12-01 | B13: 15518992.22 | C13: 711.4 | D13: 0 | E13: 19 | F13: 14 | H13: 5809523.564 | I13: 6710564.079 | J13: 0 | K13: 2194679.951 | L13: 7149.688029 | M13: 14721917.28
A14: 2007-01-01 | B14: 17027640.54 | C14: 904.3 | D14: 0 | E14: 22 | F14: 15 | H14: 5809523.564 | I14: 8530170.222 | J14: 0 | K14: 2541208.364 | L14: 7660.380031 | M14: 16888562.53
A15: 2007-02-01 | B15: 16669380.51 | C15: 948.2 | D15: 0 | E15: 20 | F15: 16 | H15: 5809523.564 | I15: 8944274.472 | J15: 0 | K15: 2310189.422 | L15: 8171.072033 | M15: 17072158.53
A16: 2007-03-01 | B16: 14934754.38 | C16: 725.1 | D16: 0 | E16: 22 | F16: 17 | H16: 5809523.564 | I16: 6839794.79 | J16: 0 | K16: 2541208.364 | L16: 8681.764035 | M16: 15199208.48
A17: 2007-04-01 | B17: 12687457.81 | C17: 505.4 | D17: 0 | E17: 19 | F17: 18 | H17: 5809523.564 | I17: 4767386.963 | J17: 0 | K17: 2194679.951 | L17: 9192.456037 | M17: 12780782.93
A18: 2007-05-01 | B18: 10985339.71 | C18: 267.8 | D18: 3.8 | E18: 22 | F18: 19 | H18: 5809523.564 | I18: 2526130.251 | J18: 256027.6494 | K18: 2541208.364 | L18: 9703.148039 | M18: 11142592.98
A19: 2007-06-01 | B19: 9760012.78 | C19: 116.4 | D19: 9.6 | E19: 21 | F19: 20 | H19: 5809523.564 | I19: 1097989.399 | J19: 646806.6932 | K19: 2425698.893 | L19: 10213.84004 | M19: 9990232.389
A20: 2007-07-01 | B20: 10363539.75 | C20: 100.5 | D20: 15.8 | E20: 21 | F20: 21 | H20: 5809523.564 | I20: 948006.3113 | J20: 1064536.016 | K20: 2425698.893 | L20: 10724.53204 | M20: 10258489.32
A21: 2007-08-01 | B21: 10623681.96 | C21: 70.8 | D21: 10.7 | E21: 22 | F21: 22 | H21: 5809523.564 | I21: 667849.2223 | J21: 720919.9601 | K21: 2541208.364 | L21: 11235.22405 | M21: 9750736.334
A22: 2007-09-01 | B22: 9937765.46 | C22: 159.7 | D22: 5.6 | E22: 19 | F22: 23 | H22: 5809523.564 | I22: 1506433.91 | J22: 377303.9043 | K22: 2194679.951 | L22: 11745.91605 | M22: 9899687.245
A23: 2007-10-01 | B23: 11018147.89 | C23: 303.9 | D23: 0 | E23: 22 | F23: 24 | H23: 5809523.564 | I23: 2866657.891 | J23: 0 | K23: 2541208.364 | L23: 12256.60805 | M23: 11229646.43
A24: 2007-11-01 | B24: 13301022.96 | C24: 602.7 | D24: 0 | E24: 22 | F24: 25 | H24: 5809523.564 | I24: 5685207.999 | J24: 0 | K24: 2541208.364 | L24: 12767.30005 | M24: 14048707.23
A25: 2007-12-01 | B25: 16610853.84 | C25: 870.2 | D25: 0 | E25: 19 | F25: 26 | H25: 5809523.564 | I25: 8208508.379 | J25: 0 | K25: 2194679.951 | L25: 13277.99205 | M25: 16225989.89
A26: 2008-01-01 | B26: 16747623.76 | C26: 873.3 | D26: 0 | E26: 22 | F26: 27 | H26: 5809523.564 | I26: 8237750.365 | J26: 0 | K26: 2541208.364 | L26: 13788.68406 | M26: 16602270.98
A27: 2008-02-01 | B27: 16220989.9 | C27: 893.4 | D27: 0 | E27: 20 | F27: 28 | H27: 5809523.564 | I27: 8427351.627 | J27: 0 | K27: 2310189.422 | L27: 14299.37606 | M27: 16561363.99
A28: 2008-03-01 | B28: 16185519.13 | C28: 838 | D28: 0 | E28: 19 | F28: 29 | H28: 5809523.564 | I28: 7904769.044 | J28: 0 | K28: 2194679.951 | L28: 14810.06806 | M28: 15923782.63
A29: 2008-04-01 | B29: 12384878.22 | C29: 461 | D29: 0 | E29: 22 | F29: 30 | H29: 5809523.564 | I29: 4348566.264 | J29: 0 | K29: 2541208.364 | L29: 15320.76006 | M29: 12714618.95
A30: 2008-05-01 | B30: 11570573.57 | C30: 376.9 | D30: 0 | E30: 21 | F30: 31 | H30: 5809523.564 | I30: 3555259.49 | J30: 0 | K30: 2425698.893 | L30: 15831.45206 | M30: 11806313.4
A31: 2008-06-01 | B31: 10031531.33 | C31: 151 | D31: 2.1 | E31: 21 | F31: 32 | H31: 5809523.564 | I31: 1424367.692 | J31: 141488.9641 | K31: 2425698.893 | L31: 16342.14407 | M31: 9817421.257
A32: 2008-07-01 | B32: 10603201.34 | C32: 106.3 | D32: 1 | E32: 22 | F32: 33 | H32: 5809523.564 | I32: 1002717.123 | J32: 67375.6972 | K32: 2541208.364 | L32: 16852.83607 | M32: 9437677.584
A33: 2008-08-01 | B33: 10275407.85 | C33: 80.1 | D33: 2.8 | E33: 20 | F33: 34 | H33: 5809523.564 | I33: 755575.1795 | J33: 188651.9522 | K33: 2310189.422 | L33: 17363.52807 | M33: 9081303.645
A34: 2008-09-01 | B34: 9957791.78 | C34: 192.3 | D34: 5.5 | E34: 21 | F34: 35 | H34: =const -> 5809523.564 | I34: =MonthlyHDD*C34 -> 1813946.405 | J34: =MonthlyCDD*D34 -> 370566.3346 | K34: =PeakDays*E34 -> 2425698.893 | L34: =Time*F34 -> 17874.22007 | M34: =SUM(H34:L34) -> 10437609.42
A35: 2008-10-01 | B35: 11903930.97 | C35: 384.1 | D35: 0 | E35: 22 | F35: 36 | H35: 5809523.564 | I35: 3623176.36 | J35: 0 | K35: 2541208.364 | L35: 18384.91207 | M35: 11992293.2
A36: 2008-11-01 | B36: 13578501.35 | C36: 564 | D36: 0 | E36: 20 | F36: 37 | H36: 5809523.564 | I36: 5320154.822 | J36: 0 | K36: 2310189.422 | L36: 18895.60408 | M36: 13458763.41
A37: 2008-12-01 | B37: 18362207.48 | C37: 946.7 | D37: 0 | E37: 21 | F37: 38 | H37: 5809523.564 | I37: 8930125.124 | J37: 0 | K37: 2425698.893 | L37: 19406.29608 | M37: 17184753.88
A38: 2009-01-01 | B38: 18881349 | C38: 1063.5 | D38: 0 | E38: 21 | F38: 39 | H38: 5809523.564 | I38: 10031887.68 | J38: 0 | K38: 2425698.893 | L38: 19916.98808 | M38: 18287027.13
A39: 2009-02-01 | B39: 15951302.32 | C39: 831.7 | D39: 0 | E39: 19 | F39: 40 | H39: 5809523.564 | I39: 7845341.783 | J39: 0 | K39: 2194679.951 | L39: 20427.68008 | M39: 15869972.98
A40: 2009-03-01 | B40: 15986795.57 | C40: 744.1 | D40: 0 | E40: 22 | F40: 41 | H40: 5809523.564 | I40: 7019019.863 | J40: 0 | K40: 2541208.364 | L40: 20938.37208 | M40: 15390690.16
A41: 2009-04-01 | B41: 12817613.51 | C41: 480.2 | D41: 0 | E41: 20 | F41: 42 | H41: 5809523.564 | I41: 4529677.918 | J41: 0 | K41: 2310189.422 | L41: 21449.06409 | M41: 12670839.97
A42: 2009-05-01 | B42: 11557935.37 | C42: 358.7 | D42: 0 | E42: 20 | F42: 43 | H42: 5809523.564 | I42: 3383580.735 | J42: 0 | K42: 2310189.422 | L42: 21959.75609 | M42: 11525253.48
A43: 2009-06-01 | B43: 10386431.49 | C43: 188.5 | D43: 6.4 | E43: 22 | F43: 44 | H43: 5809523.564 | I43: 1778101.39 | J43: 431204.4621 | K43: 2541208.364 | L43: 22470.44809 | M43: 10582508.23
A44: 2009-07-01 | B44: 10790837.5 | C44: 154 | D44: 0 | E44: 22 | F44: 45 | H44: 5809523.564 | I44: 1452666.388 | J44: 0 | K44: 2541208.364 | L44: 22981.14009 | M44: 9826379.455
A45: 2009-08-01 | B45: 11118670.27 | C45: 122.6 | D45: 11 | E45: 20 | F45: 46 | H45: 5809523.564 | I45: 1156473.371 | J45: 741132.6692 | K45: 2310189.422 | L45: 23491.83209 | M45: 10040810.86
A46: 2009-09-01 | B46: 10133781.59 | C46: 160.9 | D46: 0 | E46: 21 | F46: 47 | H46: 5809523.564 | I46: 1517753.388 | J46: 0 | K46: 2425698.893 | L46: 24002.5241 | M46: 9776978.369
A47: 2009-10-01 | B47: 13000847.74 | C47: 450 | D47: 0 | E47: 21 | F47: 48 | H47: 5809523.564 | I47: 4244804.379 | J47: 0 | K47: 2425698.893 | L47: 24513.2161 | M47: 12504540.05
A48: 2009-11-01 | B48: 12805137.38 | C48: 466.5 | D48: 0 | E48: 21 | F48: 49 | H48: 5809523.564 | I48: 4400447.206 | J48: 0 | K48: 2425698.893 | L48: 25023.9081 | M48: 12660693.57
A49: 2009-12-01 | B49: 17322151.56 | C49: 865 | D49: 0 | E49: 21 | F49: 50 | H49: 5809523.564 | I49: 8159457.307 | J49: 0 | K49: 2425698.893 | L49: 25534.6001 | M49: 16420214.36
A50: 2010-01-01 | B50: 17283128.7 | C50: 906 | D50: 0 | E50: 20 | F50: 51 | H50: 5809523.564 | I50: 8546206.15 | J50: 0 | K50: 2310189.422 | L50: 26045.29211 | M50: 16691964.43
A51: 2010-02-01 | B51: 14874695.65 | C51: 779.8 | D51: 0 | E51: 19 | F51: 52 | H51: 5809523.564 | I51: 7355774.344 | J51: 0 | K51: 2194679.951 | L51: 26555.98411 | M51: 15386533.84
A52: 2010-03-01 | B52: 13997010.93 | C52: 544.8 | D52: 0 | E52: 23 | F52: 53 | H52: 5809523.564 | I52: 5139043.168 | J52: 0 | K52: 2656717.835 | L52: 27066.67611 | M52: 13632351.24
A53: 2010-04-01 | B53: 10847949.96 | C53: 388.1 | D53: 0 | E53: 20 | F53: 54 | H53: 5809523.564 | I53: 3660907.955 | J53: 0 | K53: 2310189.422 | L53: 27577.36811 | M53: 11808198.31
A54: 2010-05-01 | B54: 10080566.12 | C54: 221.9 | D54: 10.8 | E54: 20 | F54: 55 | H54: 5809523.564 | I54: 2093160.204 | J54: 727657.5298 | K54: 2310189.422 | L54: 28088.06011 | M54: 10968618.78
A55: 2010-06-01 | B55: 9283863.41 | C55: 121.1 | D55: 2.8 | E55: 22 | F55: 56 | H55: 5809523.564 | I55: 1142324.023 | J55: 188651.9522 | K55: 2541208.364 | L55: 28598.75212 | M55: 9710306.655
A56: 2010-07-01 | B56: 10277037.66 | C56: 36.6 | D56: 11.6 | E56: 21 | F56: 57 | H56: 5809523.564 | I56: 345244.0895 | J56: 781558.0876 | K56: 2425698.893 | L56: 29109.44412 | M56: 9391134.078
A57: 2010-08-01 | B57: 10298675.94 | C57: 52.2 | D57: 45.9 | E57: 21 | F57: 58 | H57: 5809523.564 | I57: 492397.308 | J57: 3092544.502 | K57: 2425698.893 | L57: 29620.13612 | M57: 11849784.4
A58: 2010-09-01 | B58: 9789881.8 | C58: 224.1 | D58: 0.4 | E58: 21 | F58: 59 | H58: 5809523.564 | I58: 2113912.581 | J58: 26950.27888 | K58: 2425698.893 | L58: 30130.82812 | M58: 10406216.14
A59: 2010-10-01 | B59: 10854951.36 | C59: 373.7 | D59: 0 | E59: 20 | F59: 60 | H59: 5809523.564 | I59: 3525074.214 | J59: 0 | K59: 2310189.422 | L59: 30641.52012 | M59: 11675428.72
A60: 2010-11-01 | B60: 12307817.6 | C60: 539.9 | D60: 0 | E60: 22 | F60: 61 | H60: 5809523.564 | I60: 5092821.965 | J60: 0 | K60: 2541208.364 | L60: 31152.21213 | M60: 13474706.11
A61: 2010-12-01 | B61: 16509634.08 | C61: 833.5 | D61: 0 | E61: 21 | F61: 62 | H61: 5809523.564 | I61: 7862321 | J61: 0 | K61: 2425698.893 | L61: 31662.90413 | M61: 16129206.36
A62: 2011-01-01 | B62: 18210954.41 | C62: 1033.6 | D62: 0 | E62: 20 | F62: 63 | H62: 5809523.564 | I62: 9749844.014 | J62: 0 | K62: 2310189.422 | L62: 32173.59613 | M62: 17901730.6
A63: 2011-02-01 | B63: 15275983.57 | C63: 832 | D63: 0 | E63: 19 | F63: 64 | H63: 5809523.564 | I63: 7848171.652 | J63: 0 | K63: 2194679.951 | L63: 32684.28813 | M63: 15885059.45
A64: 2011-03-01 | B64: 14923502.97 | C64: 790.1 | D64: 0 | E64: 23 | F64: 65 | H64: 5809523.564 | I64: 7452933.2 | J64: 0 | K64: 2656717.835 | L64: 33194.98013 | M64: 15952369.58
A65: 2011-04-01 | B65: 12118407.5 | C65: 521.4 | D65: 0 | E65: 19 | F65: 66 | H65: 5809523.564 | I65: 4918313.341 | J65: 0 | K65: 2194679.951 | L65: 33705.67214 | M65: 12956222.53
A66: 2011-05-01 | B66: 10132000.65 | C66: 262.5 | D66: 1.2 | E66: 21 | F66: 67 | H66: =const -> 5809523.564 | I66: =MonthlyHDD*C66 -> 2476135.888 | J66: =MonthlyCDD*D66 -> 80850.83664 | K66: =PeakDays*E66 -> 2425698.893 | L66: =Time*F66 -> 34216.36414 | M66: =SUM(H66:L66) -> 10826425.55
A67: 2011-06-01 | B67: 9032152.86 | C67: 124.3 | D67: 1.4 | E67: 22 | F67: 68 | H67: 5809523.564 | I67: 1172509.299 | J67: 94325.97609 | K67: 2541208.364 | L67: 34727.05614 | M67: 9652294.259
A68: 2011-07-01 | B68: 10244088.84 | C68: 62.5 | D68: 14.1 | E68: 20 | F68: 69 | H68: 5809523.564 | I68: 589556.1638 | J68: 949997.3306 | K68: 2310189.422 | L68: 35237.74814 | M68: 9694504.228
A69: 2011-08-01 | B69: 10453709.46 | C69: 60 | D69: 11.9 | E69: 22 | F69: 70 | H69: 5809523.564 | I69: 565973.9172 | J69: 801770.7967 | K69: 2541208.364 | L69: 35748.44014 | M69: 9754225.082
A70: 2011-09-01 | B70: 9912883.38 | C70: 172.6 | D70: 3.4 | E70: 21 | F70: 71 | H70: 5809523.564 | I70: 1628118.302 | J70: 229077.3705 | K70: 2425698.893 | L70: 36259.13215 | M70: 10128677.26
A71: 2011-10-01 | B71: 10981342.77 | C71: 320.4 | D71: 1.5 | E71: 20 | F71: 72 | H71: 5809523.564 | I71: 3022300.718 | J71: 101063.5458 | K71: 2310189.422 | L71: 36769.82415 | M71: 11279847.07
A72: 2011-11-01 | B72: 12396977.68 | C72: 519.9 | D72: 0 | E72: 22 | F72: 73 | H72: 5809523.564 | I72: 4904163.993 | J72: 0 | K72: 2541208.364 | L72: 37280.51615 | M72: 13292176.44
A73: 2011-12-01 | B73: 15364156.58 | C73: 787 | D73: 0 | E73: 20 | F73: 74 | H73: 5809523.564 | I73: 7423691.214 | J73: 0 | K73: 2310189.422 | L73: 37791.20815 | M73: 15581195.41
A74: 2012-01-01 | B74: 16257178 | C74: 870.6 | D74: 0 | E74: 21 | F74: 75 | H74: 5809523.564 | I74: 8212281.539 | J74: 0 | K74: 2425698.893 | L74: 38301.90015 | M74: 16485805.9
A75: 2012-02-01 | B75: 14151568 | C75: 733.6 | D75: 0 | E75: 20 | F75: 76 | H75: 5809523.564 | I75: 6919974.428 | J75: 0 | K75: 2310189.422 | L75: 38812.59216 | M75: 15078500.01
A76: 2012-03-01 | B76: 13453783 | C76: 541.7 | D76: 0 | E76: 22 | F76: 77 | H76: 5809523.564 | I76: 5109801.183 | J76: 0 | K76: 2541208.364 | L76: 39323.28416 | M76: 13499856.39
A77: 2012-04-01 | B77: 11682191 | C77: 476.7 | D77: 0 | E77: 19 | F77: 78 | H77: 5809523.564 | I77: 4496662.772 | J77: 0 | K77: 2194679.951 | L77: 39833.97616 | M77: 12540700.26
A78: 2012-05-01 | B78: 10307176 | C78: 230.7 | D78: 6.5 | E78: 22 | F78: 79 | H78: 5809523.564 | I78: 2176169.712 | J78: 437942.0318 | K78: 2541208.364 | L78: 40344.66816 | M78: 11005188.34
A79: 2012-06-01 | B79: 9779424 | C79: 93.5 | D79: 15.1 | E79: 21 | F79: 80 | H79: 5809523.564 | I79: 881976.021 | J79: 1017373.028 | K79: 2425698.893 | L79: 40855.36016 | M79: 10175426.87
A80: 2012-07-01 | B80: 10817789 | C80: 27.3 | D80: 22.5 | E80: 21 | F80: 81 | H80: 5809523.564 | I80: 257518.1323 | J80: 1515953.187 | K80: 2425698.893 | L80: 41366.05217 | M80: 10050059.83
A81: 2012-08-01 | B81: 10717021 | C81: 62.8 | D81: 17.8 | E81: 22 | F81: 82 | H81: 5809523.564 | I81: 592386.0334 | J81: 1199287.41 | K81: 2541208.364 | L81: 41876.74417 | M81: 10184282.12
A82: 2012-09-01 | B82: 10163216 | C82: 219.8 | D82: 5.4 | E82: 19 | F82: 83 | H82: 5809523.564 | I82: 2073351.117 | J82: 363828.7649 | K82: 2194679.951 | L82: 42387.43617 | M82: 10483770.83
A83: 2012-10-01 | B83: 11586791 | C83: 379.9 | D83: 0 | E83: 22 | F83: 84 | H83: 5809523.564 | I83: 3583558.186 | J83: 0 | K83: 2541208.364 | L83: 42898.12817 | M83: 11977188.24
A84: 2012-11-01 | B84: 13032681 | C84: 567.9 | D84: 0 | E84: 22 | F84: 85 | H84: 5809523.564 | I84: 5356943.127 | J84: 0 | K84: 2541208.364 | L84: 43408.82018 | M84: 13751083.87
A85: 2012-12-01 | B85: 15521871 | C85: 777.7 | D85: 0 | E85: 19 | F85: 86 | H85: 5809523.564 | I85: 7335965.257 | J85: 0 | K85: 2194679.951 | L85: 43919.51218 | M85: 15384088.28
A86: 2013-01-01 | B86: 16693786 | C86: 782.4 | D86: 0 | E86: 22 | F86: 87 | H86: 5809523.564 | I86: 7380299.881 | J86: 0 | K86: 2541208.364 | L86: 44430.20418 | M86: 15775462.01
A87: 2013-02-01 | B87: 15174191 | C87: 692.5 | D87: 0 | E87: 19 | F87: 88 | H87: 5809523.564 | I87: 6532282.295 | J87: 0 | K87: 2194679.951 | L87: 44940.89618 | M87: 14581426.71
A88: 2013-03-01 | B88: 14601438 | C88: 716.9 | D88: 0 | E88: 20 | F88: 89 | H88: 5809523.564 | I88: 6762445.021 | J88: 0 | K88: 2310189.422 | L88: 45451.58818 | M88: 14927609.59
A89: 2013-04-01 | B89: 13150077 | C89: 513.5 | D89: 0 | E89: 21 | F89: 90 | H89: 5809523.564 | I89: 4843793.442 | J89: 0 | K89: 2425698.893 | L89: 45962.28019 | M89: 13124978.18
A90: 2013-05-01 | B90: 10553126 | C90: 306.5 | D90: 0 | E90: 22 | F90: 91 | H90: 5809523.564 | I90: 2891183.427 | J90: 0 | K90: 2541208.364 | L90: 46472.97219 | M90: 11288388.33
A91: 2013-06-01 | B91: 9632056 | C91: 134.6 | D91: 4 | E91: 20 | F91: 92 | H91: 5809523.564 | I91: 1269668.154 | J91: 269502.7888 | K91: 2310189.422 | L91: 46983.66419 | M91: 9705867.593
A92: 2013-07-01 | B92: 10454381 | C92: 72.6 | D92: 13.5 | E92: 22 | F92: 93 | H92: 5809523.564 | I92: 684828.4398 | J92: 909571.9123 | K92: 2541208.364 | L92: 47494.35619 | M92: 9992626.636
A93: 2013-08-01 | B93: 10345419 | C93: 82.1 | D93: 17.8 | E93: 21 | F93: 94 | H93: 5809523.564 | I93: 774440.9767 | J93: 1199287.41 | K93: 2425698.893 | L93: 48005.04819 | M93: 10256955.89
A94: 2013-09-01 | B94: 10224461 | C94: 170.5 | D94: 0 | E94: 20 | F94: 95 | H94: 5809523.564 | I94: 1608309.215 | J94: 0 | K94: 2310189.422 | L94: 48515.7402 | M94: 9776537.941
A95: 2013-10-01 | B95: 12045684 | C95: 325.9 | D95: 0 | E95: 22 | F95: 96 | H95: 5809523.564 | I95: 3074181.66 | J95: 0 | K95: 2541208.364 | L95: 49026.4322 | M95: 11473940.02
A96: 2013-11-01 | B96: 14228773 | C96: 587.8 | D96: 0 | E96: 21 | F96: 97 | H96: 5809523.564 | I96: 5544657.809 | J96: 0 | K96: 2425698.893 | L96: 49537.1242 | M96: 13829417.39
A97: 2013-12-01 | B97: 18557256 | C97: 854.5 | D97: 0 | E97: 20 | F97: 98 | H97: 5809523.564 | I97: 8060411.871 | J97: 0 | K97: 2310189.422 | L97: 50047.8162 | M97: 16230172.67

Sheet Predicted Monthly Data Summ
A1: Date | B1: Year | C1: WSL2 | D1: Predicted Value | E1: Absolute % Error
A2: 2006-01-01 | B2: =YEAR(A2) -> 2006 | C2: 16432360.53 | D2: 15610451.38 | E2: =ABS(D2-C2)/C2 -> 0.05001771622
A3: 2006-02-01 | B3: 2006 | C3: 15254915.93 | D3: 16252914.36 | E3: 0.06542143129
A4: 2006-03-01 | B4: 2006 | C4: 14730427.05 | D4: 14928443.83 | E4: 0.01344270492
A5: 2006-04-01 | B5: 2006 | C5: 11361311.2 | D5: 11810184.28 | E5: 0.03950891534
A6: 2006-05-01 | B6: 2006 | C6: 10639715.81 | D6: 10913039.52 | E6: 0.02568900429
A7: 2006-06-01 | B7: 2006 | C7: 9655562.27 | D7: 9812325.811 | E7: 0.01623556833
A8: 2006-07-01 | B8: 2006 | C8: 10846451.32 | D8: 10488673.07 | E8: 0.03298574217
A9: 2006-08-01 | B9: 2006 | C9: 10694433.44 | D9: 9719550.351 | E9: 0.091157993
A10: 2006-09-01 | B10: 2006 | C10: 10191889.76 | D10: 10242070.04 | E10: 0.004923549911
A11: 2006-10-01 | B11: 2006 | C11: 12347060.37 | D11: 12326739.15 | E11: 0.001645834407
A12: 2006-11-01 | B12: 2006 | C12: 12995676.43 | D12: 13248328.86 | E12: 0.01944126801
A13: 2006-12-01 | B13: 2006 | C13: 15518992.22 | D13: 14721917.28 | E13: 0.05136125643
A14: 2007-01-01 | B14: 2007 | C14: 17027640.54 | D14: 16888562.53 | E14: 0.008167779289
A15: 2007-02-01 | B15: 2007 | C15: 16669380.51 | D15: 17072158.53 | E15: 0.02416274673
A16: 2007-03-01 | B16: 2007 | C16: 14934754.38 | D16: 15199208.48 | E16: 0.017707295
A17: 2007-04-01 | B17: 2007 | C17: 12687457.81 | D17: 12780782.93 | E17: 0.007355699201
A18: 2007-05-01 | B18: 2007 | C18: 10985339.71 | D18: 11142592.98 | E18: 0.01431482957
A19: 2007-06-01 | B19: 2007 | C19: 9760012.78 | D19: 9990232.389 | E19: 0.02358804384
A20: 2007-07-01 | B20: 2007 | C20: 10363539.75 | D20: 10258489.32 | E20: 0.01013653989
A21: 2007-08-01 | B21: 2007 | C21: 10623681.96 | D21: 9750736.334 | E21: 0.08216978114
A22: 2007-09-01 | B22: 2007 | C22: 9937765.46 | D22: 9899687.245 | E22: 0.003831667751
A23: 2007-10-01 | B23: 2007 | C23: 11018147.89 | D23: 11229646.43 | E23: 0.01919547085
A24: 2007-11-01 | B24: 2007 | C24: 13301022.96 | D24: 14048707.23 | E24: 0.05621253859
A25: 2007-12-01 | B25: 2007 | C25: 16610853.84 | D25: 16225989.89 | E25: 0.02316942631
A26: 2008-01-01 | B26: 2008 | C26: 16747623.76 | D26: 16602270.98 | E26: 0.008679009335
A27: 2008-02-01 | B27: 2008 | C27: 16220989.9 | D27: 16561363.99 | E27: 0.02098355841
A28: 2008-03-01 | B28: 2008 | C28: 16185519.13 | D28: 15923782.63 | E28: 0.01617102927
A29: 2008-04-01 | B29: 2008 | C29: 12384878.22 | D29: 12714618.95 | E29: 0.026624463
A30: 2008-05-01 | B30: 2008 | C30: 11570573.57 | D30: 11806313.4 | E30: 0.02037408322
A31: 2008-06-01 | B31: 2008 | C31: 10031531.33 | D31: 9817421.257 | E31: 0.02134370779
A32: 2008-07-01 | B32: 2008 | C32: 10603201.34 | D32: 9437677.584 | E32: 0.1099218734
A33: 2008-08-01 | B33: 2008 | C33: 10275407.85 | D33: 9081303.645 | E33: 0.1162099084
A34: 2008-09-01 | B34: =YEAR(A34) -> 2008 | C34: 9957791.78 | D34: 10437609.42 | E34: =ABS(D34-C34)/C34 -> 0.04818514453
A35: 2008-10-01 | B35: 2008 | C35: 11903930.97 | D35: 11992293.2 | E35: 0.007422945429
A36: 2008-11-01 | B36: 2008 | C36: 13578501.35 | D36: 13458763.41 | E36: 0.008818199839
A37: 2008-12-01 | B37: 2008 | C37: 18362207.48 | D37: 17184753.88 | E37: 0.06412375008
A38: 2009-01-01 | B38: 2009 | C38: 18881349 | D38: 18287027.13 | E38: 0.03147666369
A39: 2009-02-01 | B39: 2009 | C39: 15951302.32 | D39: 15869972.98 | E39: 0.005098602059
A40: 2009-03-01 | B40: 2009 | C40: 15986795.57 | D40: 15390690.16 | E40: 0.03728736031
A41: 2009-04-01 | B41: 2009 | C41: 12817613.51 | D41: 12670839.97 | E41: 0.01145092592
A42: 2009-05-01 | B42: 2009 | C42: 11557935.37 | D42: 11525253.48 | E42: 0.002827658412
A43: 2009-06-01 | B43: 2009 | C43: 10386431.49 | D43: 10582508.23 | E43: 0.01887816216
A44: 2009-07-01 | B44: 2009 | C44: 10790837.5 | D44: 9826379.455 | E44: 0.08937749684
A45: 2009-08-01 | B45: 2009 | C45: 11118670.27 | D45: 10040810.86 | E45: 0.09694139551
A46: 2009-09-01 | B46: 2009 | C46: 10133781.59 | D46: 9776978.369 | E46: 0.03520928668
A47: 2009-10-01 | B47: 2009 | C47: 13000847.74 | D47: 12504540.05 | E47: 0.03817502504
A48: 2009-11-01 | B48: 2009 | C48: 12805137.38 | D48: 12660693.57 | E48: 0.01128014519
A49: 2009-12-01 | B49: 2009 | C49: 17322151.56 | D49: 16420214.36 | E49: 0.05206842773
A50: 2010-01-01 | B50: 2010 | C50: 17283128.7 | D50: 16691964.43 | E50: 0.03420470231
A51: 2010-02-01 | B51: 2010 | C51: 14874695.65 | D51: 15386533.84 | E51: 0.03440999432
A52: 2010-03-01 | B52: 2010 | C52: 13997010.93 | D52: 13632351.24 | E52: 0.02605268285
A53: 2010-04-01 | B53: 2010 | C53: 10847949.96 | D53: 11808198.31 | E53: 0.08851887701
A54: 2010-05-01 | B54: 2010 | C54: 10080566.12 | D54: 10968618.78 | E54: 0.08809551456
A55: 2010-06-01 | B55: 2010 | C55: 9283863.41 | D55: 9710306.655 | E55: 0.04593381292
A56: 2010-07-01 | B56: 2010 | C56: 10277037.66 | D56: 9391134.078 | E56: 0.08620223175
A57: 2010-08-01 | B57: 2010 | C57: 10298675.94 | D57: 11849784.4 | E57: 0.1506124158
A58: 2010-09-01 | B58: 2010 | C58: 9789881.8 | D58: 10406216.14 | E58: 0.06295626006
A59: 2010-10-01 | B59: 2010 | C59: 10854951.36 | D59: 11675428.72 | E59: 0.07558554
A60: 2010-11-01 | B60: 2010 | C60: 12307817.6 | D60: 13474706.11 | E60: 0.09480872589
A61: 2010-12-01 | B61: 2010 | C61: 16509634.08 | D61: 16129206.36 | E61: 0.0230427711
A62: 2011-01-01 | B62: 2011 | C62: 18210954.41 | D62: 17901730.6 | E62: 0.0169800993
A63: 2011-02-01 | B63: 2011 | C63: 15275983.57 | D63: 15885059.45 | E63: 0.03987146765
A64: 2011-03-01 | B64: 2011 | C64: 14923502.97 | D64: 15952369.58 | E64: 0.06894270139
A65: 2011-04-01 | B65: 2011 | C65: 12118407.5 | D65: 12956222.53 | E65: 0.06913573647
A66: 2011-05-01 | B66: =YEAR(A66) -> 2011 | C66: 10132000.65 | D66: 10826425.55 | E66: =ABS(D66-C66)/C66 -> 0.0685377863
A67: 2011-06-01 | B67: 2011 | C67: 9032152.86 | D67: 9652294.259 | E67: 0.0686593117
A68: 2011-07-01 | B68: 2011 | C68: 10244088.84 | D68: 9694504.228 | E68: 0.05364895019
A69: 2011-08-01 | B69: 2011 | C69: 10453709.46 | D69: 9754225.082 | E69: 0.06691255202
A70: 2011-09-01 | B70: 2011 | C70: 9912883.38 | D70: 10128677.26 | E70: 0.02176903258
A71: 2011-10-01 | B71: 2011 | C71: 10981342.77 | D71: 11279847.07 | E71: 0.02718286004
A72: 2011-11-01 | B72: 2011 | C72: 12396977.68 | D72: 13292176.44 | E72: 0.07221104852
A73: 2011-12-01 | B73: 2011 | C73: 15364156.58 | D73: 15581195.41 | E73: 0.0141263093
A74: 2012-01-01 | B74: 2012 | C74: 16257178 | D74: 16485805.9 | E74: 0.01406319693
A75: 2012-02-01 | B75: 2012 | C75: 14151568 | D75: 15078500.01 | E75: 0.06550030397
A76: 2012-03-01 | B76: 2012 | C76: 13453783 | D76: 13499856.39 | E76: 0.003424567992
A77: 2012-04-01 | B77: 2012 | C77: 11682191 | D77: 12540700.26 | E77: 0.07348871997
A78: 2012-05-01 | B78: 2012 | C78: 10307176 | D78: 11005188.34 | E78: 0.06772100714
A79: 2012-06-01 | B79: 2012 | C79: 9779424 | D79: 10175426.87 | E79: 0.04049347545
A80: 2012-07-01 | B80: 2012 | C80: 10817789 | D80: 10050059.83 | E80: 0.07096913904
A81: 2012-08-01 | B81: 2012 | C81: 10717021 | D81: 10184282.12 | E81: 0.04970960535
A82: 2012-09-01 | B82: 2012 | C82: 10163216 | D82: 10483770.83 | E82: 0.03154068873
A83: 2012-10-01 | B83: 2012 | C83: 11586791 | D83: 11977188.24 | E83: 0.03369330144
A84: 2012-11-01 | B84: 2012 | C84: 13032681 | D84: 13751083.87 | E84: 0.05512318413
A85: 2012-12-01 | B85: 2012 | C85: 15521871 | D85: 15384088.28 | E85: 0.008876682215
A86: 2013-01-01 | B86: 2013 | C86: 16693786 | D86: 15775462.01 | E86: 0.05500992929
A87: 2013-02-01 | B87: 2013 | C87: 15174191 | D87: 14581426.71 | E87: 0.03906398006
A88: 2013-03-01 | B88: 2013 | C88: 14601438 | D88: 14927609.59 | E88: 0.02233832002
A89: 2013-04-01 | B89: 2013 | C89: 13150077 | D89: 13124978.18 | E89: 0.001908644454
A90: 2013-05-01 | B90: 2013 | C90: 10553126 | D90: 11288388.33 | E90: 0.06967246739
A91: 2013-06-01 | B91: 2013 | C91: 9632056 | D91: 9705867.593 | E91: 0.007663119163
A92: 2013-07-01 | B92: 2013 | C92: 10454381 | D92: 9992626.636 | E92: 0.04416850351
A93: 2013-08-01 | B93: 2013 | C93: 10345419 | D93: 10256955.89 | E93: 0.008550944928
A94: 2013-09-01 | B94: 2013 | C94: 10224461 | D94: 9776537.941 | E94: 0.04380896552
A95: 2013-10-01 | B95: 2013 | C95: 12045684 | D95: 11473940.02 | E95: 0.04746463377
A96: 2013-11-01 | B96: 2013 | C96: 14228773 | D96: 13829417.39 | E96: 0.02806676374
A97: 2013-12-01 | B97: 2013 | C97: 18557256 | D97: 16230172.67 | E97: 0.1254001845
E98: =AVERAGE(E2:E97) -> 0.04173847226

Sheet PredictedAnnualDataSumm
A2: Annual Predicted vs. Actual WSL2
B3: WSL2 | C3: Predicted Value | D3: Absolute % Error
A4: 2006 | B4: 150668796.3 | C4: 150074637.9 | D4: 0.003943473352
A5: 2007 | B5: 153919597.6 | C5: 154486794.3 | D5: 0.003685019301
A6: 2008 | B6: 157822156.7 | C6: 155018172.3 | D6: 0.01776673444
A7: 2009 | B7: 160752853.3 | C7: 155555908.6 | D7: 0.03232878661
A8: 2010 | B8: 146405213.2 | C8: 151124449.1 | D8: 0.03223406977
A9: 2011 | B9: 149046160.7 | C9: 152904727.5 | D9: 0.02588840104
A10: 2012 | B10: 147470689 | C10: 150615950.9 | D10: 0.02132804805
A11: 2013 | B11: 155660648 | C11: 150963383 | D11: 0.03017631686
C12: Mean Absolute Percentage Error (Annual) | D12: =AVERAGE(D4:D11) -> 0.02091885618
C13: Mean Absolute Percentage Error (Monthly) | D13: 0.04173847226

Sheet PredictedAnnualDataSumm2
B3: WSL2 | C3: Predicted Value
A4: 2006 | B4: 150668796.3 | C4: 150074637.9
A5: 2007 | B5: 153919597.6 | C5: 154486794.3
A6: 2008 | B6: 157822156.7 | C6: 155018172.3
A7: 2009 | B7: 160752853.3 | C7: 155555908.6
A8: 2010 | B8: 146405213.2 | C8: 151124449.1
A9: 2011 | B9: 149046160.7 | C9: 152904727.5
A10: 2012 | B10: 147470689 | C10: 150615950.9
A11: 2013 | B11: 155660648 | C11: 150963383

Sheet Normalized Monthly Data
A1: Date | B1: WSL2 | C1: MonthlyHDD | D1: MonthlyCDD | E1: PeakDays | F1: Time | H1: Const | I1: MonthlyHDD | J1: MonthlyCDD | K1: PeakDays | L1: Time | M1: Normalized Value
A2: 2006-01-01 | B2: 16432360.53 | C2: 942.79 | D2: 0 | E2: 21 | F2: 3 | H2: =const -> 5809523.564 | I2: =MonthlyHDD*C2 -> 8893242.49 | J2: =MonthlyCDD*D2 -> 0 | K2: =PeakDays*E2 -> 2425698.893 | L2: =Time*F2 -> 1532.076006 | M2: =SUM(H2:L2) -> 17129997.02
A3: 2006-02-01 | B3: 15254915.93 | C3: 813.98 | D3: 0 | E3: 20 | F3: 4 | H3: 5809523.564 | I3: 7678190.819 | J3: 0 | K3: 2310189.422 | L3: 2042.768008 | M3: 15799946.57
A4: 2006-03-01 | B4: 14730427.05 | C4: 710.35 | D4: 0 | E4: 23 | F4: 5 | H4: 5809523.564 | I4: 6700659.535 | J4: 0 | K4: 2656717.835 | L4: 2553.46001 | M4: 15169454.39
A5: 2006-04-01 | B5: 11361311.2 | C5: 471.4 | D5: 0 | E5: 18 | F5: 6 | H5: 5809523.564 | I5: 4446668.41 | J5: 0 | K5: 2079170.48 | L5: 3064.152012 | M5: 12338426.61
A6: 2006-05-01 | B6: 10639715.81 | C6: 292.27 | D6: 2.62 | E6: 22 | F6: 7 | H6: 5809523.564 | I6: 2756953.28 | J6: 176524.3267 | K6: 2541208.364 | L6: 3574.844014 | M6: 11287784.38
A7: 2006-06-01 | B7: 9655562.27 | C7: 136.59 | D7: 5.51 | E7: 22 | F7: 8 | H7: 5809523.564 | I7: 1288439.623 | J7: 371240.0916 | K7: 2541208.364 | L7: 4085.536016 | M7: 10014497.18
A8: 2006-07-01 | B8: 10846451.32 | C8: 77.01 | D8: 13.97 | E8: 20 | F8: 9 | H8: 5809523.564 | I8: 726427.5228 | J8: 941238.4899 | K8: 2310189.422 | L8: 4596.228019 | M8: 9791975.226
A9: 2006-08-01 | B9: 10694433.44 | C9: 80.76 | D9: 14.92 | E9: 22 | F9: 10 | H9: 5809523.564 | I9: 761800.8926 | J9: 1005245.402 | K9: 2541208.364 | L9: 5106.920021 | M9: 10122885.14
A10: 2006-09-01 | B10: 10191889.76 | C10: 176.82 | D10: 4.27 | E10: 20 | F10: 11 | H10: 5809523.564 | I10: 1667925.134 | J10: 287694.2271 | K10: 2310189.422 | L10: 5617.612023 | M10: 10080949.96
A11: 2006-10-01 | B11: 12347060.37 | C11: 369.2 | D11: 0.36 | E11: 21 | F11: 12 | H11: 5809523.564 | I11: 3482626.171 | J11: 24255.25099 | K11: 2425698.893 | L11: 6128.304025 | M11: 11748232.18
A12: 2006-11-01 | B12: 12995676.43 | C12: 551.09 | D12: 0 | E12: 22 | F12: 13 | H12: 5809523.564 | I12: 5198376.101 | J12: 0 | K12: 2541208.364 | L12: 6638.996027 | M12: 13555747.02
A13: 2006-12-01 | B13: 15518992.22 | C13: 843.15 | D13: 0 | E13: 19 | F13: 14 | H13: 5809523.564 | I13: 7953348.472 | J13: 0 | K13: 2194679.951 | L13: 7149.688029 | M13: 15964701.67
A14: 2007-01-01 | B14: 17027640.54 | C14: 942.79 | D14: 0 | E14: 22 | F14: 15 | H14: 5809523.564 | I14: 8893242.49 | J14: 0 | K14: 2541208.364 | L14: 7660.380031 | M14: 17251634.8
A15: 2007-02-01 | B15: 16669380.51 | C15: 813.98 | D15: 0 | E15: 20 | F15: 16 | H15: 5809523.564 | I15: 7678190.819 | J15: 0 | K15: 2310189.422 | L15: 8171.072033 | M15: 15806074.88
A16: 2007-03-01 | B16: 14934754.38 | C16: 710.35 | D16: 0 | E16: 22 | F16: 17 | H16: 5809523.564 | I16: 6700659.535 | J16: 0 | K16: 2541208.364 | L16: 8681.764035 | M16: 15060073.23
A17: 2007-04-01 | B17: 12687457.81 | C17: 471.4 | D17: 0 | E17: 19 | F17: 18 | H17: 5809523.564 | I17: 4446668.41 | J17: 0 | K17: 2194679.951 | L17: 9192.456037 | M17: 12460064.38
A18: 2007-05-01 | B18: 10985339.71 | C18: 292.27 | D18: 2.62 | E18: 22 | F18: 19 | H18: 5809523.564 | I18: 2756953.28 | J18: 176524.3267 | K18: 2541208.364 | L18: 9703.148039 | M18: 11293912.68
A19: 2007-06-01 | B19: 9760012.78 | C19: 136.59 | D19: 5.51 | E19: 21 | F19: 20 | H19: 5809523.564 | I19: 1288439.623 | J19: 371240.0916 | K19: 2425698.893 | L19: 10213.84004 | M19: 9905116.011
A20: 2007-07-01 | B20: 10363539.75 | C20: 77.01 | D20: 13.97 | E20: 21 | F20: 21 | H20: 5809523.564 | I20: 726427.5228 | J20: 941238.4899 | K20: 2425698.893 | L20: 10724.53204 | M20: 9913613.001
A21: 2007-08-01 | B21: 10623681.96 | C21: 80.76 | D21: 14.92 | E21: 22 | F21: 22 | H21: 5809523.564 | I21: 761800.8926 | J21: 1005245.402 | K21: 2541208.364 | L21: 11235.22405 | M21: 10129013.45
A22: 2007-09-01 | B22: 9937765.46 | C22: 176.82 | D22: 4.27 | E22: 19 | F22: 23 | H22: 5809523.564 | I22: 1667925.134 | J22: 287694.2271 | K22: 2194679.951 | L22: 11745.91605 | M22: 9971568.792
A23: 2007-10-01 | B23: 11018147.89 | C23: 369.2 | D23: 0.36 | E23: 22 | F23: 24 | H23: 5809523.564 | I23: 3482626.171 | J23: 24255.25099 | K23: 2541208.364 | L23: 12256.60805 | M23: 11869869.96
A24: 2007-11-01 | B24: 13301022.96 | C24: 551.09 | D24: 0 | E24: 22 | F24: 25 | H24: 5809523.564 | I24: 5198376.101 | J24: 0 | K24: 2541208.364 | L24: 12767.30005 | M24: 13561875.33
A25: 2007-12-01 | B25: 16610853.84 | C25: 843.15 | D25: 0 | E25: 19 | F25: 26 | H25: 5809523.564 | I25: 7953348.472 | J25: 0 | K25: 2194679.951 | L25: 13277.99205 | M25: 15970829.98
A26: 2008-01-01 | B26: 16747623.76 | C26: 942.79 | D26: 0 | E26: 22 | F26: 27 | H26: 5809523.564 | I26: 8893242.49 | J26: 0 | K26: 2541208.364 | L26: 13788.68406 | M26: 17257763.1
A27: 2008-02-01 | B27: 16220989.9 | C27: 813.98 | D27: 0 | E27: 20 | F27: 28 | H27: 5809523.564 | I27: 7678190.819 | J27: 0 | K27: 2310189.422 | L27: 14299.37606 | M27: 15812203.18
A28: 2008-03-01 | B28: 16185519.13 | C28: 710.35 | D28: 0 | E28: 19 | F28: 29 | H28: 5809523.564 | I28: 6700659.535 | J28: 0 | K28: 2194679.951 | L28: 14810.06806 | M28: 14719673.12
A29: 2008-04-01 | B29: 12384878.22 | C29: 471.4 | D29: 0 | E29: 22 | F29: 30 | H29: 5809523.564 | I29: 4446668.41 | J29: 0 | K29: 2541208.364 | L29: 15320.76006 | M29: 12812721.1
A30: 2008-05-01 | B30: 11570573.57 | C30: 292.27 | D30: 2.62 | E30: 21 | F30: 31 | H30: 5809523.564 | I30: 2756953.28 | J30: 176524.3267 | K30: 2425698.893 | L30: 15831.45206 | M30: 11184531.52
A31: 2008-06-01 | B31: 10031531.33 | C31: 136.59 | D31: 5.51 | E31: 21 | F31: 32 | H31: 5809523.564 | I31: 1288439.623 | J31: 371240.0916 | K31: 2425698.893 | L31: 16342.14407 | M31: 9911244.315
A32: 2008-07-01 | B32: 10603201.34 | C32: 77.01 | D32: 13.97 | E32: 22 | F32: 33 | H32: 5809523.564 | I32: 726427.5228 | J32: 941238.4899 | K32: 2541208.364 | L32: 16852.83607 | M32: 10035250.78
A33: 2008-08-01 | B33: 10275407.85 | C33: 80.76 | D33: 14.92 | E33: 20 | F33: 34 | H33: 5809523.564 | I33: 761800.8926 | J33: 1005245.402 | K33: 2310189.422 | L33: 17363.52807 | M33: 9904122.809
A34: 2008-09-01 | B34: 9957791.78 | C34: 176.82 | D34: 4.27 | E34: 21 | F34: 35 | H34: =const -> 5809523.564 | I34: =MonthlyHDD*C34 -> 1667925.134 | J34: =MonthlyCDD*D34 -> 287694.2271 | K34: =PeakDays*E34 -> 2425698.893 | L34: =Time*F34 -> 17874.22007 | M34: =SUM(H34:L34) -> 10208716.04
A35: 2008-10-01 | B35: 11903930.97 | C35: 369.2 | D35: 0.36 | E35: 22 | F35: 36 | H35: 5809523.564 | I35: 3482626.171 | J35: 24255.25099 | K35: 2541208.364 | L35: 18384.91207 | M35: 11875998.26
A36: 2008-11-01 | B36: 13578501.35 | C36: 551.09 | D36: 0 | E36: 20 | F36: 37 | H36: 5809523.564 | I36: 5198376.101 | J36: 0 | K36: 2310189.422 | L36: 18895.60408 | M36: 13336984.69
A37: 2008-12-01 | B37: 18362207.48 | C37: 843.15 | D37: 0 | E37: 21 | F37: 38 | H37: 5809523.564 | I37: 7953348.472 | J37: 0 | K37: 2425698.893 | L37: 19406.29608 | M37: 16207977.22
A38: 2009-01-01 | B38: 18881349 | C38: 942.79 | D38: 0 | E38: 21 | F38: 39 | H38: 5809523.564 | I38: 8893242.49 | J38: 0 | K38: 2425698.893 | L38: 19916.98808 | M38: 17148381.94
A39: 2009-02-01 | B39: 15951302.32 | C39: 813.98 | D39: 0 | E39: 19 | F39: 40 | H39: 5809523.564 | I39: 7678190.819 | J39: 0 | K39: 2194679.951 | L39: 20427.68008 | M39: 15702822.01
A40: 2009-03-01 | B40: 15986795.57 | C40: 710.35 | D40: 0 | E40: 22 | F40: 41 | H40: 5809523.564 | I40: 6700659.535 | J40: 0 | K40: 2541208.364 | L40: 20938.37208 | M40: 15072329.83
A41: 2009-04-01 | B41: 12817613.51 | C41: 471.4 | D41: 0 | E41: 20 | F41: 42 | H41: 5809523.564 | I41: 4446668.41 | J41: 0 | K41: 2310189.422 | L41: 21449.06409 | M41: 12587830.46
A42: 2009-05-01 | B42: 11557935.37 | C42: 292.27 | D42: 2.62 | E42: 20 | F42: 43 | H42: 5809523.564 | I42: 2756953.28 | J42: 176524.3267 | K42: 2310189.422 | L42: 21959.75609 | M42: 11075150.35
A43: 2009-06-01 | B43: 10386431.49 | C43: 136.59 | D43: 5.51 | E43: 22 | F43: 44 | H43: 5809523.564 | I43: 1288439.623 | J43: 371240.0916 | K43: 2541208.364 | L43: 22470.44809 | M43: 10032882.09
A44: 2009-07-01 | B44: 10790837.5 | C44: 77.01 | D44: 13.97 | E44: 22 | F44: 45 | H44: 5809523.564 | I44: 726427.5228 | J44: 941238.4899 | K44: 2541208.364 | L44: 22981.14009 | M44: 10041379.08
A45: 2009-08-01 | B45: 11118670.27 | C45: 80.76 | D45: 14.92 | E45: 20 | F45: 46 | H45: 5809523.564 | I45: 761800.8926 | J45: 1005245.402 | K45: 2310189.422 | L45: 23491.83209 | M45: 9910251.113
A46: 2009-09-01 | B46: 10133781.59 | C46: 176.82 | D46: 4.27 | E46: 21 | F46: 47 | H46: 5809523.564 | I46: 1667925.134 | J46: 287694.2271 | K46: 2425698.893 | L46: 24002.5241 | M46: 10214844.34
A47: 2009-10-01 | B47: 13000847.74 | C47: 369.2 | D47: 0.36 | E47: 21 | F47: 48 | H47: 5809523.564 | I47: 3482626.171 | J47: 24255.25099 | K47: 2425698.893 | L47: 24513.2161 | M47: 11766617.09
A48: 2009-11-01 | B48: 12805137.38 | C48: 551.09 | D48: 0 | E48: 21 | F48: 49 | H48: 5809523.564 | I48: 5198376.101 | J48: 0 | K48: 2425698.893 | L48: 25023.9081 | M48: 13458622.47
A49: 2009-12-01 | B49: 17322151.56 | C49: 843.15 | D49: 0 | E49: 21 | F49: 50 | H49: 5809523.564 | I49: 7953348.472 | J49: 0 | K49: 2425698.893 | L49: 25534.6001 | M49: 16214105.53
A50: 2010-01-01 | B50: 17283128.7 | C50: 942.79 | D50: 0 | E50: 20 | F50: 51 | H50: 5809523.564 | I50: 8893242.49 | J50: 0 | K50: 2310189.422 | L50: 26045.29211 | M50: 17039000.77
A51: 2010-02-01 | B51: 14874695.65 | C51: 813.98 | D51: 0 | E51: 19 | F51: 52 | H51: 5809523.564 | I51: 7678190.819 | J51: 0 | K51: 2194679.951 | L51: 26555.98411 | M51: 15708950.32
A52: 2010-03-01 | B52: 13997010.93 | C52: 710.35 | D52: 0 | E52: 23 | F52: 53 | H52: 5809523.564 | I52: 6700659.535 | J52: 0 | K52: 2656717.835 | L52: 27066.67611 | M52: 15193967.61
A53: 2010-04-01 | B53: 10847949.96 | C53: 471.4 | D53: 0 | E53: 20 | F53: 54 | H53: 5809523.564 | I53: 4446668.41 | J53: 0 | K53: 2310189.422 | L53: 27577.36811 | M53: 12593958.76
A54: 2010-05-01 | B54: 10080566.12 | C54: 292.27 | D54: 2.62 | E54: 20 | F54: 55 | H54: 5809523.564 | I54: 2756953.28 | J54: 176524.3267 | K54: 2310189.422 | L54: 28088.06011 | M54: 11081278.65
A55: 2010-06-01 | B55: 9283863.41 | C55: 136.59 | D55: 5.51 | E55: 22 | F55: 56 | H55: 5809523.564 | I55: 1288439.623 | J55: 371240.0916 | K55: 2541208.364 | L55: 28598.75212 | M55: 10039010.39
A56: 2010-07-01 | B56: 10277037.66 | C56: 77.01 | D56: 13.97 | E56: 21 | F56: 57 | H56: 5809523.564 | I56: 726427.5228 | J56: 941238.4899 | K56: 2425698.893 | L56: 29109.44412 | M56: 9931997.914
A57: 2010-08-01 | B57: 10298675.94 | C57: 80.76 | D57: 14.92 | E57: 21 | F57: 58 | H57: 5809523.564 | I57: 761800.8926 | J57: 1005245.402 | K57: 2425698.893 | L57: 29620.13612 | M57: 10031888.89
A58: 2010-09-01 | B58: 9789881.8 | C58: 176.82 | D58: 4.27 | E58: 21 | F58: 59 | H58: 5809523.564 | I58: 1667925.134 | J58: 287694.2271 | K58: 2425698.893 | L58: 30130.82812 | M58: 10220972.65
A59: 2010-10-01 | B59: 10854951.36 | C59: 369.2 | D59: 0.36 | E59: 20 | F59: 60 | H59: 5809523.564 | I59: 3482626.171 | J59: 24255.25099 | K59: 2310189.422 | L59: 30641.52012 | M59: 11657235.93
A60: 2010-11-01 | B60: 12307817.6 | C60: 551.09 | D60: 0 | E60: 22 | F60: 61 | H60: 5809523.564 | I60: 5198376.101 | J60: 0 | K60: 2541208.364 | L60: 31152.21213 | M60: 13580260.24
A61: 2010-12-01 | B61: 16509634.08 | C61: 843.15 | D61: 0 | E61: 21 | F61: 62 | H61: 5809523.564 | I61: 7953348.472 | J61: 0 | K61: 2425698.893 | L61: 31662.90413 | M61: 16220233.83
A62: 2011-01-01 | B62: 18210954.41 | C62: 942.79 | D62: 0 | E62: 20 | F62: 63 | H62: 5809523.564 | I62: 8893242.49 | J62: 0 | K62: 2310189.422 | L62: 32173.59613 | M62: 17045129.07
A63: 2011-02-01 | B63: 15275983.57 | C63: 813.98 | D63: 0 | E63: 19 | F63: 64 | H63: 5809523.564 | I63: 7678190.819 | J63: 0 | K63: 2194679.951 | L63: 32684.28813 | M63: 15715078.62
A64: 2011-03-01 | B64: 14923502.97 | C64: 710.35 | D64: 0 | E64: 23 | F64: 65 | H64: 5809523.564 | I64: 6700659.535 | J64: 0 | K64: 2656717.835 | L64: 33194.98013 | M64: 15200095.91
A65: 2011-04-01 | B65: 12118407.5 | C65: 471.4 | D65: 0 | E65: 19 | F65: 66 | H65: 5809523.564 | I65: 4446668.41 | J65: 0 | K65: 2194679.951 | L65: 33705.67214 | M65: 12484577.6
A66: 2011-05-01 | B66: 10132000.65 | C66: 292.27 | D66: 2.62 | E66: 21 | F66: 67 | H66: =const -> 5809523.564 | I66: =MonthlyHDD*C66 -> 2756953.28 | J66: =MonthlyCDD*D66 -> 176524.3267 | K66: =PeakDays*E66 -> 2425698.893 | L66: =Time*F66 -> 34216.36414 | M66: =SUM(H66:L66) -> 11202916.43
A67: 2011-06-01 | B67: 9032152.86 | C67: 136.59 | D67: 5.51 | E67: 22 | F67: 68 | H67: 5809523.564 | I67: 1288439.623 | J67: 371240.0916 | K67: 2541208.364 | L67: 34727.05614 | M67: 10045138.7
A68: 2011-07-01 | B68: 10244088.84 | C68: 77.01 | D68: 13.97 | E68: 20 | F68: 69 | H68: 5809523.564 | I68: 726427.5228 | J68: 941238.4899 | K68: 2310189.422 | L68: 35237.74814 | M68: 9822616.746
A69: 2011-08-01 | B69: 10453709.46 | C69: 80.76 | D69: 14.92 | E69: 22 | F69: 70 | H69: 5809523.564 | I69: 761800.8926 | J69: 1005245.402 | K69: 2541208.364 | L69: 35748.44014 | M69: 10153526.66
A70: 2011-09-01 | B70: 9912883.38 | C70: 176.82 | D70: 4.27 | E70: 21 | F70: 71 | H70: 5809523.564 | I70: 1667925.134 | J70: 287694.2271 | K70: 2425698.893 | L70: 36259.13215 | M70: 10227100.95
A71: 2011-10-01 | B71: 10981342.77 | C71: 369.2 | D71: 0.36 | E71: 20 | F71: 72 | H71: 5809523.564 | I71: 3482626.171 | J71: 24255.25099 | K71: 2310189.422 | L71: 36769.82415 | M71: 11663364.23
A72: 2011-11-01 | B72: 12396977.68 | C72: 551.09 | D72: 0 | E72: 22 | F72: 73 | H72: 5809523.564 | I72: 5198376.101 | J72: 0 | K72: 2541208.364 | L72: 37280.51615 | M72: 13586388.54
A73: 2011-12-01 | B73: 15364156.58 | C73: 843.15 | D73: 0 | E73: 20 | F73: 74 | H73: 5809523.564 | I73: 7953348.472 | J73: 0 | K73: 2310189.422 | L73: 37791.20815 | M73: 16110852.67
A74: 2012-01-01 | B74: 16257178 | C74: 942.79 | D74: 0 | E74: 21 | F74: 75 | H74: 5809523.564 | I74: 8893242.49 | J74: 0 | K74: 2425698.893 | L74: 38301.90015 | M74: 17166766.85
A75: 2012-02-01 | B75: 14151568 | C75: 813.98 | D75: 0 | E75: 20 | F75: 76 | H75: 5809523.564 | I75: 7678190.819 | J75: 0 | K75: 2310189.422 | L75: 38812.59216 | M75: 15836716.4
A76: 2012-03-01 | B76: 13453783 | C76: 710.35 | D76: 0 | E76: 22 | F76: 77 | H76: 5809523.564 | I76: 6700659.535 | J76: 0 | K76: 2541208.364 | L76: 39323.28416 | M76: 15090714.75
A77: 2012-04-01 | B77: 11682191 | C77: 471.4 | D77: 0 | E77: 19 | F77: 78 | H77: 5809523.564 | I77: 4446668.41 | J77: 0 | K77: 2194679.951 | L77: 39833.97616 | M77: 12490705.9
A78: 2012-05-01 | B78: 10307176 | C78: 292.27 | D78: 2.62 | E78: 22 | F78: 79 | H78: 5809523.564 | I78: 2756953.28 | J78: 176524.3267 | K78: 2541208.364 | L78: 40344.66816 | M78: 11324554.2
A79: 2012-06-01 | B79: 9779424 | C79: 136.59 | D79: 5.51 | E79: 21 | F79: 80 | H79: 5809523.564 | I79: 1288439.623 | J79: 371240.0916 | K79: 2425698.893 | L79: 40855.36016 | M79: 9935757.531
A80: 2012-07-01 | B80: 10817789 | C80: 77.01 | D80: 13.97 | E80: 21 | F80: 81 | H80: 5809523.564 | I80: 726427.5228 | J80: 941238.4899 | K80: 2425698.893 | L80: 41366.05217 | M80: 9944254.522
A81: 2012-08-01 | B81: 10717021 | C81: 80.76 | D81: 14.92 | E81: 22 | F81: 82 | H81: 5809523.564 | I81: 761800.8926 | J81: 1005245.402 | K81: 2541208.364 | L81: 41876.74417 | M81: 10159654.97
A82: 2012-09-01 | B82: 10163216 | C82: 176.82 | D82: 4.27 | E82: 19 | F82: 83 | H82: 5809523.564 | I82: 1667925.134 | J82: 287694.2271 | K82: 2194679.951 | L82: 42387.43617 | M82: 10002210.31
A83: 2012-10-01 | B83: 11586791 | C83: 369.2 | D83: 0.36 | E83: 22 | F83: 84 | H83: 5809523.564 | I83: 3482626.171 | J83: 24255.25099 | K83: 2541208.364 | L83: 42898.12817 | M83: 11900511.48
A84: 2012-11-01 | B84: 13032681 | C84: 551.09 | D84: 0 | E84: 22 | F84: 85 | H84: 5809523.564 | I84: 5198376.101 | J84: 0 | K84: 2541208.364 | L84: 43408.82018 | M84: 13592516.85
A85: 2012-12-01 | B85: 15521871 | C85: 843.15 | D85: 0 | E85: 19 | F85: 86 | H85: 5809523.564 | I85: 7953348.472 | J85: 0 | K85: 2194679.951 | L85: 43919.51218 | M85: 16001471.5
A86: 2013-01-01 | B86: 16693786 | C86: 942.79 | D86: 0 | E86: 22 | F86: 87 | H86: 5809523.564 | I86: 8893242.49 | J86: 0 | K86: 2541208.364 | L86: 44430.20418 | M86: 17288404.62
A87: 2013-02-01 | B87: 15174191 | C87: 813.98 | D87: 0 | E87: 19 | F87: 88 | H87: 5809523.564 | I87: 7678190.819 | J87: 0 | K87: 2194679.951 | L87: 44940.89618 | M87: 15727335.23
A88: 2013-03-01 | B88: 14601438 | C88: 710.35 | D88: 0 | E88: 20 | F88: 89 | H88: 5809523.564 | I88: 6700659.535 | J88: 0 | K88: 2310189.422 | L88: 45451.58818 | M88: 14865824.11
A89: 2013-04-01 | B89: 13150077 | C89: 471.4 | D89: 0 | E89: 21 | F89: 90 | H89: 5809523.564 | I89: 4446668.41 | J89: 0 | K89: 2425698.893 | L89: 45962.28019 | M89: 12727853.15
A90: 2013-05-01 | B90: 10553126 | C90: 292.27 | D90: 2.62 | E90: 22 | F90: 91 | H90: 5809523.564 | I90: 2756953.28 | J90: 176524.3267 | K90: 2541208.364 | L90: 46472.97219 | M90: 11330682.51
A91: 2013-06-01 | B91: 9632056 | C91: 136.59 | D91: 5.51 | E91: 20 | F91: 92 | H91: 5809523.564 | I91: 1288439.623 | J91: 371240.0916 | K91: 2310189.422 | L91: 46983.66419 | M91: 9826376.364
A92: 2013-07-01 | B92: 10454381 | C92: 77.01 | D92: 13.97 | E92: 22 | F92: 93 | H92: 5809523.564 | I92: 726427.5228 | J92: 941238.4899 | K92: 2541208.364 | L92: 47494.35619 | M92: 10065892.3
A93: 2013-08-01 | B93: 10345419 | C93: 80.76 | D93: 14.92 | E93: 21 | F93: 94 | H93: 5809523.564 | I93: 761800.8926 | J93: 1005245.402 | K93: 2425698.893 | L93: 48005.04819 | M93: 10050273.8
A94: 2013-09-01 | B94: 10224461 | C94: 176.82 | D94: 4.27 | E94: 20 | F94: 95 | H94: 5809523.564 | I94: 1667925.134 | J94: 287694.2271 | K94: 2310189.422 | L94: 48515.7402 | M94: 10123848.09
A95: 2013-10-01 | B95: 12045684 | C95: 369.2 | D95: 0.36 | E95: 22 | F95: 96 | H95: 5809523.564 | I95: 3482626.171 | J95: 24255.25099 | K95: 2541208.364 | L95: 49026.4322 | M95: 11906639.78
A96: 2013-11-01 | B96: 14228773 | C96: 551.09 | D96: 0 | E96: 21 | F96: 97 | H96: 5809523.564 | I96: 5198376.101 | J96: 0 | K96: 2425698.893 | L96: 49537.1242 | M96: 13483135.68
A97: 2013-12-01 | B97: 18557256 | C97: 843.15 | D97: 0 | E97: 20 | F97: 98 | H97: 5809523.564 | I97: 7953348.472 | J97: 0 | K97: 2310189.422 | L97: 50047.8162 | M97: 16123109.27
A98: 2014-01-01 | C98: 942.79 | D98: 0 | E98: 22 | F98: 99 | H98: =const -> 5809523.564 | I98: =MonthlyHDD*C98 -> 8893242.49 | J98: =MonthlyCDD*D98 -> 0 | K98: =PeakDays*E98 -> 2541208.364 | L98: =Time*F98 -> 50558.5082 | M98: =SUM(H98:L98) -> 17294532.93
A99: 2014-02-01 | C99: 813.98 | D99: 0 | E99: 19 | F99: 100 | H99: 5809523.564 | I99: 7678190.819 | J99: 0 | K99: 2194679.951 | L99: 51069.20021 | M99: 15733463.53
A100: 2014-03-01 | C100: 710.35 | D100: 0 | E100: 21 | F100: 101 | H100: 5809523.564 | I100: 6700659.535 | J100: 0 | K100: 2425698.893 | L100: 51579.89221 | M100: 14987461.88
A101: 2014-04-01 | C101: 471.4 | D101: 0 | E101: 20 | F101: 102 | H101: 5809523.564 | I101: 4446668.41 | J101: 0 | K101: 2310189.422 | L101: 52090.58421 | M101: 12618471.98
A102: 2014-05-01 | C102: 292.27 | D102: 2.62 | E102: 21 | F102: 103 | H102: 5809523.564 | I102: 2756953.28 | J102: 176524.3267 | K102: 2425698.893 | L102: 52601.27621 | M102: 11221301.34
A103: 2014-06-01 | C103: 136.59 | D103: 5.51 | E103: 21 | F103: 104 | H103: 5809523.564 | I103: 1288439.623 | J103: 371240.0916 | K103: 2425698.893 | L103: 53111.96821 | M103: 9948014.139
A104: 2014-07-01 | C104: 77.01 | D104: 13.97 | E104: 22 | F104: 105 | H104: 5809523.564 | I104: 726427.5228 | J104: 941238.4899 | K104: 2541208.364 | L104: 53622.66022 | M104: 10072020.6
A105: 2014-08-01 | C105: 80.76 | D105: 14.92 | E105: 20 | F105: 106 | H105: 5809523.564 | I105: 761800.8926 | J105: 1005245.402 | K105: 2310189.422 | L105: 54133.35222 | M105: 9940892.633
A106: 2014-09-01 | C106: 176.82 | D106: 4.27 | E106: 21 | F106: 107 | H106: 5809523.564 | I106: 1667925.134 | J106: 287694.2271 | K106: 2425698.893 | L106: 54644.04422 | M106: 10245485.86
A107: 2014-10-01 | C107: 369.2 | D107: 0.36 | E107: 22 | F107: 108 | H107: 5809523.564 | I107: 3482626.171 | J107: 24255.25099 | K107: 2541208.364 | L107: 55154.73622 | M107: 11912768.09
A108: 2014-11-01 | C108: 551.09 | D108: 0 | E108: 20 | F108: 109 | H108: 5809523.564 | I108: 5198376.101 | J108: 0 | K108: 2310189.422 | L108: 55665.42822 | M108: 13373754.51
A109: 2014-12-01 | C109: 843.15 | D109: 0 | E109: 21 | F109: 110 | H109: 5809523.564 | I109: 7953348.472 | J109: 0 | K109: 2425698.893 | L109: 56176.12023 | M109: 16244747.05
A110: 2015-01-01 | C110: 942.79 | D110: 0 | E110: 21 | F110: 111 | H110: 5809523.564 | I110: 8893242.49 | J110: 0 | K110: 2425698.893 | L110: 56686.81223 | M110: 17185151.76
A111: 2015-02-01 | C111: 813.98 | D111: 0 | E111: 19 | F111: 112 | H111: 5809523.564 | I111: 7678190.819 | J111: 0 | K111: 2194679.951 | L111: 57197.50423 | M111: 15739591.84
A112: 2015-03-01 | C112: 710.35 | D112: 0 | E112: 22 | F112: 113 | H112: 5809523.564 | I112: 6700659.535 | J112: 0 | K112: 2541208.364 | L112: 57708.19623 | M112: 15109099.66
A113: 2015-04-01 | C113: 471.4 | D113: 0 | E113: 20 | F113: 114 | H113: 5809523.564 | I113: 4446668.41 | J113: 0 | K113: 2310189.422 | L113: 58218.88823 | M113: 12624600.28
A114: 2015-05-01 | C114: 292.27 | D114: 2.62 | E114: 20 | F114: 115 | H114: 5809523.564 | I114: 2756953.28 | J114: 176524.3267 | K114: 2310189.422 | L114: 58729.58024 | M114: 11111920.17
A115: 2015-06-01 | C115: 136.59 | D115: 5.51 | E115: 22 | F115: 116 | H115: 5809523.564 | I115: 1288439.623 | J115: 371240.0916 | K115: 2541208.364 | L115: 59240.27224 | M115: 10069651.91
A116: 2015-07-01 | C116: 77.01 | D116: 13.97 | E116: 22 | F116: 117 | H116: 5809523.564 | I116: 726427.5228 | J116: 941238.4899 | K116: 2541208.364 | L116: 59750.96424 | M116: 10078148.9
A117: 2015-08-01 | C117: 80.76 | D117: 14.92 | E117: 20 | F117: 118 | H117: 5809523.564 | I117: 761800.8926 | J117: 1005245.402 | K117: 2310189.422 | L117: 60261.65624 | M117: 9947020.937
A118: 2015-09-01 | C118: 176.82 | D118: 4.27 | E118: 21 | F118: 119 | H118: 5809523.564 | I118: 1667925.134 | J118: 287694.2271 | K118: 2425698.893 | L118: 60772.34825 | M118: 10251614.17
A119: 2015-10-01 | C119: 369.2 | D119: 0.36 | E119: 21 | F119: 120 | H119: 5809523.564 | I119: 3482626.171 | J119: 24255.25099 | K119: 2425698.893 | L119: 61283.04025 | M119: 11803386.92
A120: 2015-11-01 | C120: 551.09 | D120: 0 | E120: 21 | F120: 121 | H120: 5809523.564 | I120: 5198376.101 | J120: 0 | K120: 2425698.893 | L120: 61793.73225 | M120: 13495392.29
A121: 2015-12-01 | C121: 843.15 | D121: 0 | E121: 21 | F121: 122 | H121: 5809523.564 | I121: 7953348.472 | J121: 0 | K121: 2425698.893 | L121: 62304.42425 | M121: 16250875.35

Sheet Normalized Monthly Data Summ
A1: Date | B1: Year | C1: WSL2 | D1: Normalized Value
A2: 2006-01-01 | B2: =YEAR(A2) -> 2006 | C2: 16432360.53 | D2: 17129997.02
A3: 2006-02-01 | B3: 2006 | C3: 15254915.93 | D3: 15799946.57
A4: 2006-03-01 | B4: 2006 | C4: 14730427.05 | D4: 15169454.39
A5: 2006-04-01 | B5: 2006 | C5: 11361311.2 | D5: 12338426.61
A6: 2006-05-01 | B6: 2006 | C6: 10639715.81 | D6: 11287784.38
A7: 2006-06-01 | B7: 2006 | C7: 9655562.27 | D7: 10014497.18
A8: 2006-07-01 | B8: 2006 | C8: 10846451.32 | D8: 9791975.226
A9: 2006-08-01 | B9: 2006 | C9: 10694433.44 | D9: 10122885.14
A10: 2006-09-01 | B10: 2006 | C10: 10191889.76 | D10: 10080949.96
A11: 2006-10-01 | B11: 2006 | C11: 12347060.37 | D11: 11748232.18
A12: 2006-11-01 | B12: 2006 | C12: 12995676.43 | D12: 13555747.02
A13: 2006-12-01 | B13: 2006 | C13: 15518992.22 | D13: 15964701.67
A14: 2007-01-01 | B14: 2007 | C14: 17027640.54 | D14: 17251634.8
A15: 2007-02-01 | B15: 2007 | C15: 16669380.51 | D15: 15806074.88
A16: 2007-03-01 | B16: 2007 | C16: 14934754.38 | D16: 15060073.23
A17: 2007-04-01 | B17: 2007 | C17: 12687457.81 | D17: 12460064.38
A18: 2007-05-01 | B18: 2007 | C18: 10985339.71 | D18: 11293912.68
A19: 2007-06-01 | B19: 2007 | C19: 9760012.78 | D19: 9905116.011
A20: 2007-07-01 | B20: 2007 | C20: 10363539.75 | D20: 9913613.001
A21: 2007-08-01 | B21: 2007 | C21: 10623681.96 | D21: 10129013.45
A22: 2007-09-01 | B22: 2007 | C22: 9937765.46 | D22: 9971568.792
A23: 2007-10-01 | B23: 2007 | C23: 11018147.89 | D23: 11869869.96
A24: 2007-11-01 | B24: 2007 | C24: 13301022.96 | D24: 13561875.33
A25: 2007-12-01 | B25: 2007 | C25: 16610853.84 | D25: 15970829.98
A26: 2008-01-01 | B26: 2008 | C26: 16747623.76 | D26: 17257763.1
A27: 2008-02-01 | B27: 2008 | C27: 16220989.9 | D27: 15812203.18
A28: 2008-03-01 | B28: 2008 | C28: 16185519.13 | D28: 14719673.12
A29: 2008-04-01 | B29: 2008 | C29: 12384878.22 | D29: 12812721.1
A30: 2008-05-01 | B30: 2008 | C30: 11570573.57 | D30: 11184531.52
A31: 2008-06-01 | B31: 2008 | C31: 10031531.33 | D31: 9911244.315
A32: 2008-07-01 | B32: 2008 | C32: 10603201.34 | D32: 10035250.78
A33: 2008-08-01 | B33: 2008 | C33: 10275407.85 | D33: 9904122.809
A34: 2008-09-01 | B34: =YEAR(A34) -> 2008 | C34: 9957791.78 | D34: 10208716.04
A35: 2008-10-01 | B35: 2008 | C35: 11903930.97 | D35: 11875998.26
A36: 2008-11-01 | B36: 2008 | C36: 13578501.35 | D36: 13336984.69
A37: 2008-12-01 | B37: 2008 | C37: 18362207.48 | D37: 16207977.22
A38: 2009-01-01 | B38: 2009 | C38: 18881349 | D38: 17148381.94
A39: 2009-02-01 | B39: 2009 | C39: 15951302.32 | D39: 15702822.01
A40: 2009-03-01 | B40: 2009 | C40: 15986795.57 | D40: 15072329.83
A41: 2009-04-01 | B41: 2009 | C41: 12817613.51 | D41: 12587830.46
A42: 2009-05-01 | B42: 2009 | C42: 11557935.37 | D42: 11075150.35
A43: 2009-06-01 | B43: 2009 | C43: 10386431.49 | D43: 10032882.09
A44: 2009-07-01 | B44: 2009 | C44: 10790837.5 | D44: 10041379.08
A45: 2009-08-01 | B45: 2009 | C45: 11118670.27 | D45: 9910251.113
A46: 2009-09-01 | B46: 2009 | C46: 10133781.59 | D46: 10214844.34
A47: 2009-10-01 | B47: 2009 | C47: 13000847.74 | D47: 11766617.09
A48: 2009-11-01 | B48: 2009 | C48: 12805137.38 | D48: 13458622.47
A49: 2009-12-01 | B49: 2009 | C49: 17322151.56 | D49: 16214105.53
A50: 2010-01-01 | B50: 2010 | C50: 17283128.7 | D50: 17039000.77
A51: 2010-02-01 | B51: 2010 | C51: 14874695.65 | D51: 15708950.32
A52: 2010-03-01 | B52: 2010 | C52: 13997010.93 | D52: 15193967.61
A53: 2010-04-01 | B53: 2010 | C53: 10847949.96 | D53: 12593958.76
A54: 2010-05-01 | B54: 2010 | C54: 10080566.12 | D54: 11081278.65
A55: 2010-06-01 | B55: 2010 | C55: 9283863.41 | D55: 10039010.39
A56: 2010-07-01 | B56: 2010 | C56: 10277037.66 | D56: 9931997.914
A57: 2010-08-01 | B57: 2010 | C57: 10298675.94 | D57: 10031888.89
A58: 2010-09-01 | B58: 2010 | C58: 9789881.8 | D58: 10220972.65
A59: 2010-10-01 | B59: 2010 | C59: 10854951.36 | D59: 11657235.93
A60: 2010-11-01 | B60: 2010 | C60: 12307817.6 | D60: 13580260.24
A61: 2010-12-01 | B61: 2010 | C61: 16509634.08 | D61: 16220233.83
A62: 2011-01-01 | B62: 2011 | C62: 18210954.41 | D62: 17045129.07
A63: 2011-02-01 | B63: 2011 | C63: 15275983.57 | D63: 15715078.62
A64: 2011-03-01 | B64: 2011 | C64: 14923502.97 | D64: 15200095.91
A65: 2011-04-01 | B65: 2011 | C65: 12118407.5 | D65: 12484577.6
A66: 2011-05-01 | B66: =YEAR(A66) -> 2011 | C66: 10132000.65 | D66: 11202916.43
A67: 2011-06-01 | B67: 2011 | C67: 9032152.86 | D67: 10045138.7
A68: 2011-07-01 | B68: 2011 | C68: 10244088.84 | D68: 9822616.746
A69: 2011-08-01 | B69: 2011 | C69: 10453709.46 | D69: 10153526.66
A70: 2011-09-01 | B70: 2011 | C70: 9912883.38 | D70: 10227100.95
A71: 2011-10-01 | B71: 2011 | C71: 10981342.77 | D71: 11663364.23
A72: 2011-11-01 | B72: 2011 | C72: 12396977.68 | D72: 13586388.54
A73: 2011-12-01 | B73: 2011 | C73: 15364156.58 | D73: 16110852.67
A74: 2012-01-01 | B74: 2012 | C74: 16257178 | D74: 17166766.85
A75: 2012-02-01 | B75: 2012 | C75: 14151568 | D75: 15836716.4
A76: 2012-03-01 | B76: 2012 | C76: 13453783 | D76: 15090714.75
A77: 2012-04-01 | B77: 2012 | C77: 11682191 | D77: 12490705.9
A78: 2012-05-01 | B78: 2012 | C78: 10307176 | D78: 11324554.2
A79: 2012-06-01 | B79: 2012 | C79: 9779424 | D79: 9935757.531
A80: 2012-07-01 | B80: 2012 | C80: 10817789 | D80: 9944254.522
A81: 2012-08-01 | B81: 2012 | C81: 10717021 | D81: 10159654.97
A82: 2012-09-01 | B82: 2012 | C82: 10163216 | D82: 10002210.31
A83: 2012-10-01 | B83: 2012 | C83: 11586791 | D83: 11900511.48
A84: 2012-11-01 | B84: 2012 | C84: 13032681 | D84: 13592516.85
A85: 2012-12-01 | B85: 2012 | C85: 15521871 | D85: 16001471.5
A86: 2013-01-01 | B86: 2013 | C86: 16693786 | D86: 17288404.62
A87: 2013-02-01 | B87: 2013 | C87: 15174191 | D87: 15727335.23
A88: 2013-03-01 | B88: 2013 | C88: 14601438 | D88: 14865824.11
A89: 2013-04-01 | B89: 2013 | C89: 13150077 | D89: 12727853.15
A90: 2013-05-01 | B90: 2013 | C90: 10553126 | D90: 11330682.51
A91: 2013-06-01 | B91: 2013 | C91: 9632056 | D91: 9826376.364
A92: 2013-07-01 | B92: 2013 | C92: 10454381 | D92: 10065892.3
A93: 2013-08-01 | B93: 2013 | C93: 10345419 | D93: 10050273.8
A94: 2013-09-01 | B94: 2013 | C94: 10224461 | D94: 10123848.09
A95: 2013-10-01 | B95: 2013 | C95: 12045684 | D95: 11906639.78
A96: 2013-11-01 | B96: 2013 | C96: 14228773 | D96: 13483135.68
A97: 2013-12-01 | B97: 2013 | C97: 18557256 | D97: 16123109.27
A98: 2014-01-01 | B98: =YEAR(A98) -> 2014 | D98: 17294532.93
A99: 2014-02-01 | B99: 2014 | D99: 15733463.53
A100: 2014-03-01 | B100: 2014 | D100: 14987461.88
A101: 2014-04-01 | B101: 2014 | D101: 12618471.98
A102: 2014-05-01 | B102: 2014 | D102: 11221301.34
A103: 2014-06-01 | B103: 2014 | D103: 9948014.139
A104: 2014-07-01 | B104: 2014 | D104: 10072020.6
A105: 2014-08-01 | B105: 2014 | D105: 9940892.633
A106: 2014-09-01 | B106: 2014 | D106: 10245485.86
A107: 2014-10-01 | B107: 2014 | D107: 11912768.09
A108: 2014-11-01 | B108: 2014 | D108: 13373754.51
A109: 2014-12-01 | B109: 2014 | D109: 16244747.05
A110: 2015-01-01 | B110: 2015 | D110: 17185151.76
A111: 2015-02-01 | B111: 2015 | D111: 15739591.84
A112: 2015-03-01 | B112: 2015 | D112: 15109099.66
A113: 2015-04-01 | B113: 2015 | D113: 12624600.28
A114: 2015-05-01 | B114: 2015 | D114: 11111920.17
A115: 2015-06-01 | B115: 2015 | D115: 10069651.91
A116: 2015-07-01 | B116: 2015 | D116: 10078148.9
A117: 2015-08-01 | B117: 2015 | D117: 9947020.937
A118: 2015-09-01 | B118: 2015 | D118: 10251614.17
A119: 2015-10-01 | B119: 2015 | D119: 11803386.92
A120: 2015-11-01 | B120: 2015 | D120: 13495392.29
A121: 2015-12-01 | B121: 2015 | D121: 16250875.35

Sheet NormalizedAnnualDataSumm
A2: Annual Actual vs. Normalized WSL2
B3: WSL2 | C3: Normalized Value
A4: 2006 | B4: 150668796.3 | C4: 153004597.4
A5: 2007 | B5: 153919597.6 | C5: 153193646.5
A6: 2008 | B6: 157822156.7 | C6: 153267186.1
A7: 2009 | B7: 160752853.3 | C7: 153225216.3
A8: 2010 | B8: 146405213.2 | C8: 153298756
A9: 2011 | B9: 149046160.7 | C9: 153256786.1
A10: 2012 | B10: 147470689 | C10: 153445835.2
A11: 2013 | B11: 155660648 | C11: 153519374.9
A12: 2014 | C12: 153592914.5
A13: 2015 | C13: 153666454.2

Sheet NormalizedAnnualDataSumm2
A2: Annual Actual vs. Normalized WSL2
B3: WSL2 | C3: % Change | D3: Normalized Value | E3: % Change
A4: 2006 | B4: 150668796.3 | D4: 153004597.4
A5: 2007 | B5: 153919597.6 | C5: =B5/B4-1 -> 0.02157580955 | D5: 153193646.5 | E5: =D5/D4-1 -> 0.001235578033
A6: 2008 | B6: 157822156.7 | C6: =B6/B5-1 -> 0.02535453026 | D6: 153267186.1 | E6: =D6/D5-1 -> 0.0004800437224
A7: 2009 | B7: 160752853.3 | C7: 0.01856961457 | D7: 153225216.3 | E7: -0.0002738343664
A8: 2010 | B8: 146405213.2 | C8: -0.08925278647 | D8: 153298756 | E8: 0.0004799448163
A9: 2011 | B9: 149046160.7 | C9: 0.01803861626 | D9: 153256786.1 | E9: -0.0002737779739
A10: 2012 | B10: 147470689 | C10: -0.01057036064 | D10: 153445835.2 | E10: 0.001233544851
A11: 2013 | B11: 155660648 | C11: 0.05553618184 | D11: 153519374.9 | E11: 0.0004792547688
A12: 2014 | D12: 153592914.5 | E12: 0.0004790251937
A13: 2015 | D13: 153666454.2 | E13: 0.0004787958384
